Workbook

Sheet Life expectancy results
A1: Life Expectancy Calculator
B2: Input | I2: Life expectancy
I3: =life_expect -> 16.2
J4: Number of Future Years | K4: Probability of Survival
B5: =IF(couple?,"Person 1","") ->  | J5: =IF(display1,IF(opt_display="pct",t_pct_1,IF(couple?,yrs_c_1,yrs_1)),"") -> 17 | K5: =IF(display1,IF(opt_display="pct",1-pct_1,prob_yrs_1),"") -> 50%
B6: Age: | C6: 67 | D6: Sex: | E6: M | J6: =IF(display2,IF(opt_display="pct",t_pct_2,IF(couple?,yrs_c_2,yrs_2)),"") -> 19 | K6: =IF(display2,IF(opt_display="pct",1-pct_2,prob_yrs_2),"") -> 40%
B7: =IF(couple?,"Person 2","") ->  | J7: =IF(display3,IF(opt_display="pct",t_pct_3,IF(couple?,yrs_c_3,yrs_3)),"") -> 21 | K7: =IF(display3,IF(opt_display="pct",1-pct_3,prob_yrs_3),"") -> 30%
B8: =IF(couple?,"Age:","") ->  | C8: 85 | D8: =IF(couple?,"Sex:","") ->  | E8: F | J8: =IF(display4,IF(opt_display="pct",t_pct_4,IF(couple?,yrs_c_4,yrs_4)),"") -> 24 | K8: =IF(display4,IF(opt_display="pct",1-pct_4,prob_yrs_4),"") -> 20%
J9: =IF(display5,IF(opt_display="pct",t_pct_5,IF(couple?,yrs_c_5,yrs_5)),"") -> 27 | K9: =IF(display5,IF(opt_display="pct",1-pct_5,prob_yrs_5),"") -> 10%
I10: =table_source_text -> Table source: Social Security 2011 tables with no mortality improvement
B15: Click here for disclaimer
B16: Created by Mary Pat Campbell, FSA, updated May 2014
B17: Updated October 2015 by Retirement Rocket Science

Sheet Printable Explanations
A1: Simple Life Expectancy Calculator
A3: ="Results for a"&IF(couple?," couple:","n individual:") -> Results for an individual: | F3: =" "&IndividualString1&" "&IndividualString2 -> The calculations presented in this tool are intended for educational purposes, as most people do not have a good feel for how long they may live in retirement. The calculations presented are based on public mortality tables, which were developed with certain populations in mind, and reflect probabilities based on averages in large populations. An individual's survival probabilities are dependent on factors such as family history, personal lifestyle (such as smoking or diet), existing disease (such as diabetes), and the like; one needs to take that into consideration when trying to consider how to use these numbers for their own retirement planning.
A4: =IF(couple?,"Age of first person:","Age:") -> Age: | B4: =_age1 -> 67 | C4: =IF(couple?,"Sex of first person:","Sex:") -> Sex: | D4: =IF(_sex1="M","Male","Female") -> Male
A5: =IF(couple?,"Age of second person:","") ->  | B5: =IF(couple?,_age2,"") ->  | C5: =IF(couple?,"Sex of second person:","") ->  | D5: =IF(couple?,IF(_sex2="M","Male","Female"),"") -> 
A7: Mortality tables used: | B7: =Explanations!B17 -> Social Security Calendar Year 2011
A8: Mortality improvement: | B8: =IF(mort_improve_rate=0,"none",TEXT(proj_rate,"0%")&" per year") -> none
A10: Life expectancy: | C10: =life_expect -> 16.2
A12: Survival probabilities for set number of years
A13: Number of future years | C13: Probability of survival
A14: =IF(displayy1,years1,"") -> 10 | C14: =IF(A14="","",prob_yrs_1) -> 75%
A15: =IF(displayy2,years2,"") -> 15 | C15: =IF(A15="","",prob_yrs_2) -> 56%
A16: =IF(displayy3,years3,"") -> 20 | C16: =IF(A16="","",prob_yrs_3) -> 35%
A17: =IF(displayy4,years4,"") -> 25 | C17: =IF(A17="","",prob_yrs_4) -> 15%
A18: =IF(displayy5,years5,"") ->  | C18: =IF(A18="","",prob_yrs_5) ->  | F18: =" "&IF(couple?,couple_calc_explain,single_calc_explain) -> All probabilities and averages are computed taking into account your age and sex, using the Social Security Calendar Year 2011 mortality table, with mortality rates assumed to be constant.
A20: Number of Future Years for set percentiles
A21: Number of future years | C21: Probability of survival
A22: =IF(C22="","",t_pct_1) -> 17 | C22: =IF(displayp1,1-pct_1,"") -> 50%
A23: =IF(C23="","",t_pct_2) -> 19 | C23: =IF(displayp2,1-pct_2,"") -> 40% | F23: =" "&IF(couple?,couple_expect_explain&couple_expect_example,single_expect_explain&single_expect_example) -> The life expectancy is the average number of years until death. In this illustration, life expectancy is 16.2, which means on average you would expect to live 16.2 more years.
A24: =IF(C24="","",t_pct_3) -> 21 | C24: =IF(displayp3,1-pct_3,"") -> 30%
A25: =IF(C25="","",t_pct_4) -> 24 | C25: =IF(displayp4,1-pct_4,"") -> 20%
A26: =IF(C26="","",t_pct_5) -> 27 | C26: =IF(displayp5,1-pct_5,"") -> 10%
F28: =" "&IF(couple?,couple_prob_explain&couple_prob_example,single_prob_explain&single_prob_example) -> The ages and probabilities displayed indicate the probability of surviving to that many years. For example, the information in the first row means that, of people currently age 67, 50% will be expected to be alive in 17 more years.
A29: Description of Social Security Mortality Tables:
A30: =" "&Method_string3 -> The Social Security 2011 tables are a calendar year mortality table for the general U.S. population, reflecting mortality patterns by age and sex in the year 2011. As these tables were developed with the entire U.S. population in mind, the underlying numbers include people who have severe disabilities and chronic disease; someone who is actively working and in good health likely has better survival probabilities than the broad population. This table was developed in 2005 by the Office of the Chief Actuary of the SSA, using mortality patterns and trends observed and projected.
F37: Explanation of Mortality Improvement
F38: =" "&Method_string5 -> A mortality improvement option is provided for extra conservatism in estimating life expectancy. Mortality rates do not remain static; with improved medical treatment, improved safety regulations, improvement in lifestyles (most especially a reduction in smoking), probabilities of death for a given age and sex tends to decline from year to year. According to the 2003 Technical Panel on Assumptions and Methods for the Social Security Advisory Board, the U.S. population has seen about a 1% improvement in mortality per year over the past 50 years. It is difficult to project how mortality is likely to improve in the future, as much depends on breakthroughs yet to come, but it is prudent to assume some improvement in mortality when trying to plan for how long one's retirement income needs to last.
A40: =Explanations!A36 -> Explanation of 2012 IAM Tables:
A41: =" "&Method_string4 -> The 2012 Individual Annuitant Mortality tables were developed from a population of people buying individual immediate annuities. Those who buy annuities tend to have longer life expectancies than the broad population; an important reason for buying an annuity is to prevent outliving one's retirement savings, so those who are in ill health or have other reasons to believe they will not be long-lived generally do not buy annuities. As with the Social Security tables, these tables are by age and sex and reflect mortality rates in the year 2012; also, there will have been some mortality improvement in the annuitant population since this table was published.
A53: Click here for disclaimer
A54: ='Life expectancy results'!B16 -> Created by Mary Pat Campbell, FSA, updated May 2014
A55: Updated October 2015 by Retirement Rocket Science

Sheet Explanations
A1: Explanation of cals:
A2: Explanation of calcs for single: | B2: ="All probabilities and averages are computed taking into account your age and sex, using "&table_string&" mortality table,"&mort_improve_text&"." -> All probabilities and averages are computed taking into account your age and sex, using the Social Security Calendar Year 2011 mortality table, with mortality rates assumed to be constant.
B3: ="The life expectancy is the average number of years until death." -> The life expectancy is the average number of years until death.
B4: =" In this illustration, life expectancy is "&ROUND(life_expect,1)&", which means on average you would expect to live "&ROUND(life_expect,1)&" more years." -> In this illustration, life expectancy is 16.2, which means on average you would expect to live 16.2 more years.
B5: ="The ages and probabilities displayed indicate the probability of surviving to that many years." -> The ages and probabilities displayed indicate the probability of surviving to that many years.
B6: =IF(display1," For example, the information in the first row means that, of people currently age "&_age1&", "&ROUND('Life expectancy results'!K5*100,0)&"% will be expected to be alive in "&ROUND('Life expectancy results'!J5,0)&" more years.","") -> For example, the information in the first row means that, of people currently age 67, 50% will be expected to be alive in 17 more years.
A10: Explanation of calcs for Couple: | B10: ="All probabilities and averages are computed taking into account your ages and sexes, using "&table_string&" mortality table,"&mort_improve_text&"." -> All probabilities and averages are computed taking into account your ages and sexes, using the Social Security Calendar Year 2011 mortality table, with mortality rates assumed to be constant.
B11: ="The life expectancy is the average number of years until the last death in the couple." -> The life expectancy is the average number of years until the last death in the couple.
B12: =" In this illustration, life expectancy is "&ROUND(life_expect,1)&", which means on average you would expect the last person in the couple to die in "&ROUND(life_expect,1)&" more years." -> In this illustration, life expectancy is 16.2, which means on average you would expect the last person in the couple to die in 16.2 more years.
B13: ="The ages and probabilities displayed indicate the probability of at least one member of the couple surviving to that age." -> The ages and probabilities displayed indicate the probability of at least one member of the couple surviving to that age.
B14: =IF(display1," For example, the information in the first row means that, of couples currently aged "&_age1&" and "&_age2&", "&ROUND('Life expectancy results'!K5*100,0)&"% will be expected to have at least one member alive in "&ROUND('Life expectancy results'!J5,0)&" years from now.","") -> For example, the information in the first row means that, of couples currently aged 67 and 85, 50% will be expected to have at least one member alive in 17 years from now.
A17: Table name: | B17: =IF(table_set = "ann","2012 Individual Annuitant Mortality", "Social Security Calendar Year 2011") -> Social Security Calendar Year 2011
B18: ="the "&B17 -> the Social Security Calendar Year 2011
A20: Begin table source: | B20: =IF(table_set="ann","Table source: 2012 Individual Annuitant Mortality tables","Table source: Social Security 2011 tables") -> Table source: Social Security 2011 tables
A21: mortality improvement: | B21: =IF(mort_improve_rate=0,"no", TEXT(mort_improve_rate,"0%")) -> no
A22: mortality improvement phrase: | B22: =IF(mort_improve_rate=0," with mortality rates assumed to be constant"," with mortality rates assumed to decline by "&B21&" per year") -> with mortality rates assumed to be constant
A23: Table footnote: | B23: =B20&IF(mort_improve_rate=0," with no mortality improvement"," with "&B21&" mortality improvement") -> Table source: Social Security 2011 tables with no mortality improvement
A26: Explanation of methods:
A27: The calculations presented in this tool are intended for educational purposes, as most people do not have a good feel for how long they may live in retirement. The calculations presented are based on public mortality tables, which were developed with certain populations in mind, and reflect probabilities based on averages in large populations.
A28: An individual's survival probabilities are dependent on factors such as family history, personal lifestyle (such as smoking or diet), existing disease (such as diabetes), and the like; one needs to take that into consideration when trying to consider how to use these numbers for their own retirement planning.
A31: Explanation of Social Security Table
A32: The Social Security 2011 tables are a calendar year mortality table for the general U.S. population, reflecting mortality patterns by age and sex in the year 2011. As these tables were developed with the entire U.S. population in mind, the underlying numbers include people who have severe disabilities and chronic disease; someone who is actively working and in good health likely has better survival probabilities than the broad population. This table was developed in 2005 by the Office of the Chief Actuary of the SSA, using mortality patterns and trends observed and projected.
A33: Source:
A34: http://www.ssa.gov/OACT/NOTES/pdf_studies/study120.pdf
A36: Explanation of 2012 IAM Tables:
A37: The 2012 Individual Annuitant Mortality tables were developed from a population of people buying individual immediate annuities. Those who buy annuities tend to have longer life expectancies than the broad population; an important reason for buying an annuity is to prevent outliving one's retirement savings, so those who are in ill health or have other reasons to believe they will not be long-lived generally do not buy annuities. As with the Social Security tables, these tables are by age and sex and reflect mortality rates in the year 2012; also, there will have been some mortality improvement in the annuitant population since this table was published.
A38: Source:
A39: http://www.actuary.org/files/publications/Payout_Annuity_Report_09-28-11.pdf
A40: Explanation of mortality improvement:
A41: A mortality improvement option is provided for extra conservatism in estimating life expectancy. Mortality rates do not remain static; with improved medical treatment, improved safety regulations, improvement in lifestyles (most especially a reduction in smoking), probabilities of death for a given age and sex tends to decline from year to year. According to the 2003 Technical Panel on Assumptions and Methods for the Social Security Advisory Board, the U.S. population has seen about a 1% improvement in mortality per year over the past 50 years. It is difficult to project how mortality is likely to improve in the future, as much depends on breakthroughs yet to come, but it is prudent to assume some improvement in mortality when trying to plan for how long one's retirement income needs to last.
A42: Source:
A43: http://www.ssab.gov/documents/mort.projection.ssab.pdf
B46: Click here for disclaimer
B47: Created by Mary Pat Campbell, FSA, 2007

Sheet Super secret parameters
G1: Table set | H1: ss
A2: Male mortality table: | B2: =IF(table_set="ann","2581","SSM") -> SSM
A3: Female mortality table: | B3: =IF(table_set="ann","2582","SSF") -> SSF
G4: Type | H4: Assumption
A5: Interpolation choice: | B5: lin | G5: linear | H5: uniform distribution of deaths
G6: exponential | H6: constant force of mortality
A7: Show: | B7: pct | G7: harmonic | H7: hyperbolic; Balducci's assumption
A8: Percentiles to show: | B8: 1 | C8: 2 | D8: 3 | E8: 4 | F8: 5
B9: =IF(couple?,30%,50%) -> 50% | C9: =IF(couple?,40%,60%) -> 60% | D9: =IF(couple?,50%,70%) -> 70% | E9: =IF(couple?,60%,80%) -> 80% | F9: =IF(couple?,70%,90%) -> 90%
A11: Years to show: | B11: 1 | C11: 2 | D11: 3 | E11: 4 | F11: 5
A12: individual | B12: 10 | C12: 15 | D12: 20 | E12: 25 | F12: 30
A13: couple | B13: 10 | C13: 15 | D13: 20 | E13: 25 | F13: 30

Sheet Calcs
A1: Couple? | B1: FALSE | D1: person1 in range | E1: =IF(_sex1="M",AND(_age1<=age_max_M,_age1>=age_min_M),AND(_age1<=age_max_F,_age1>=age_min_F)) -> TRUE | F1: mortality improvement rate | G1: 0.00%
A2: 2nd entered? | B2: =OR(AND(couple?,enter1?,enter2?),AND(NOT(couple?),enter1?)) -> TRUE | D2: person2 in range | E2: =IF(_sex2="M",AND(_age2<=age_max_M,_age2>=age_min_M),AND(_age2<=age_max_F,_age2>=age_min_F)) -> TRUE | F2: projected future improvement | G2: 1.00% | L2: life expectancy: | M2: =IF(exists_2nd,SUM(M5:M160),"") -> 16.21428182 | O2: Percentiles | P2: prob | Q2: where occurs | R2: prob | S2: prob next | T2: actually where
B3: Person 1 | F3: Person2 | O3: =pct_1 -> 0.5 | P3: =1-O3 -> 0.5 | Q3: =LOOKUP(O3,death_array,yrs_array) -> 16 | R3: =LOOKUP(Q3,yrs_array,surv_array) -> 0.5219874592 | S3: =LOOKUP(Q3+1,yrs_array,surv_array) -> 0.4788770369 | T3: =IF(exists_2nd,InterpSolve(opt_interp, R3,S3,P3)+Q3,"") -> 16.51002653
A4: Year | B4: Age | C4: mort improvement factor | D4: Qx | E4: S(x) | F4: Age | G4: mort improvement factor | H4: Qy | I4: S(y) | J4: S(x,y) | K4: death prob | L4: S-bar(x,y) | M4: e-circle bit | O4: =pct_2 -> 0.6 | P4: =1-O4 -> 0.4 | Q4: =LOOKUP(O4,death_array,yrs_array) -> 18 | R4: =LOOKUP(Q4,yrs_array,surv_array) -> 0.4352345781 | S4: =LOOKUP(Q4+1,yrs_array,surv_array) -> 0.3914151608 | T4: =IF(exists_2nd,InterpSolve(opt_interp, R4,S4,P4)+Q4,"") -> 18.80408596
A5: 0 | B5: =_age1 -> 67 | C5: =IF(B5="","",mort_improve_rate) -> 0 | D5: =IF(B5="","",IF(_sex1="M",VLOOKUP(B5,mort_table_M,2)*(1-C5)^A5,VLOOKUP(B5,mort_table_F,2)*(1-C5)^A5)) -> 0.018348 | E5: =1 -> 1 | F5: =IF(couple?,_age2,"") ->  | G5: =IF(F5="","",mort_improve_rate) ->  | H5: =IF(F5="","",IF(_sex2="M",VLOOKUP(F5,mort_table_M,2)*(1-G5)^A5,VLOOKUP(F5,mort_table_F,2)*(1-G5)^A5)) ->  | I5: =IF(couple?,1,0) -> 0 | J5: =IF(OR(E5="",I5=""),"",E5*I5) -> 0 | K5: =1-L5 -> 0 | L5: =IF(AND(E5="",I5="",J5=""),"",E5+I5-J5) -> 1 | M5: =IntegralValue(opt_interp,L5,L6) -> 0.990826 | O5: =pct_3 -> 0.7 | P5: =1-O5 -> 0.3 | Q5: =LOOKUP(O5,death_array,yrs_array) -> 21 | R5: =LOOKUP(Q5,yrs_array,surv_array) -> 0.3048170015 | S5: =LOOKUP(Q5+1,yrs_array,surv_array) -> 0.2630186653 | T5: =IF(exists_2nd,InterpSolve(opt_interp, R5,S5,P5)+Q5,"") -> 21.11524386
A6: =IF(AND(B6="",F6=""),"",A5+1) -> 1 | B6: =IF(OR(B5="",AND(_sex1="M",B5=age_max_M),(AND(_sex1="F",B5=age_max_F))),"",B5+1) -> 68 | C6: 0 | D6: 0.019969 | E6: =IF(B6="",0,E5*(1-D5)) -> 0.981652 | F6: =IF(couple?,IF(OR(F5="",AND(_sex2="M",F5=age_max_M),(AND(_sex2="F",F5=age_max_F))),"",F5+1),"") ->  | I6: =IF(F6="",0,I5*(1-H5)) -> 0 | J6: =IF(OR(E6="",I6=""),0,E6*I6) -> 0 | K6: =1-L6 -> 0.018348 | L6: =IF(AND(E6="",I6="",J6=""),"",E6+I6-J6) -> 0.981652 | M6: =IntegralValue(opt_interp,L6,L7) -> 0.9718506956 | O6: =pct_4 -> 0.8 | P6: =1-O6 -> 0.2 | Q6: =LOOKUP(O6,death_array,yrs_array) -> 23 | R6: =LOOKUP(Q6,yrs_array,surv_array) -> 0.2230156305 | S6: =LOOKUP(Q6+1,yrs_array,surv_array) -> 0.1854539999 | T6: =IF(exists_2nd,InterpSolve(opt_interp, R6,S6,P6)+Q6,"") -> 23.61274311
A7: 2 | B7: =IF(OR(B6="",AND(_sex1="M",B6=age_max_M),(AND(_sex1="F",B6=age_max_F))),"",B6+1) -> 69 | C7: 0 | D7: 0.021766 | E7: 0.9620493912 | F7: =IF(couple?,IF(OR(F6="",AND(_sex2="M",F6=age_max_M),(AND(_sex2="F",F6=age_max_F))),"",F6+1),"") ->  | I7: =IF(F7="",0,I6*(1-H6)) -> 0 | J7: =IF(OR(E7="",I7=""),0,E7*I7) -> 0 | K7: 0.03795060879 | L7: 0.9620493912 | M7: 0.9515794077 | O7: =pct_5 -> 0.9 | P7: =1-O7 -> 0.1 | Q7: =LOOKUP(O7,death_array,yrs_array) -> 26 | R7: =LOOKUP(Q7,yrs_array,surv_array) -> 0.1200148796 | S7: =LOOKUP(Q7+1,yrs_array,surv_array) -> 0.0930198127 | T7: =IF(exists_2nd,InterpSolve(opt_interp, R7,S7,P7)+Q7,"") -> 26.7414273
A8: 3 | B8: 70 | C8: 0 | D8: 0.02384 | E8: 0.9411094242 | I8: 0 | J8: 0 | K8: 0.05889057584 | L8: 0.9411094242 | M8: 0.9298913998 | O8: Years | P8: survival prob
A9: 4 | B9: 71 | C9: 0 | D9: 0.026162 | E9: 0.9186733755 | I9: 0 | J9: 0 | K9: 0.08132662451 | L9: 0.9186733755 | M9: 0.9066562091 | O9: =IF(couple?,yrs_c_1,yrs_1) -> 10 | P9: =IF(exists_2nd,LOOKUP(O9,yrs_array,surv_array),"") -> 0.7510112791
A10: 5 | B10: 72 | C10: 0 | D10: 0.028625 | E10: 0.8946390426 | I10: 0 | J10: 0 | K10: 0.1053609574 | L10: 0.8946390426 | M10: 0.8818345213 | O10: =IF(couple?,yrs_c_2,yrs_2) -> 15 | P10: =IF(exists_2nd,LOOKUP(O10,yrs_array,surv_array),"") -> 0.5641759743
A11: 6 | B11: 73 | C11: 0 | D11: 0.031204 | E11: 0.86903 | I11: 0 | J11: 0 | K11: 0.13097 | L11: 0.86903 | M11: 0.855471394 | O11: =IF(couple?,yrs_c_3,yrs_3) -> 20 | P11: =IF(exists_2nd,LOOKUP(O11,yrs_array,surv_array),"") -> 0.3477942896
A12: 7 | B12: 74 | C12: 0 | D12: 0.033997 | E12: 0.8419127879 | I12: 0 | J12: 0 | K12: 0.1580872121 | L12: 0.8419127879 | M12: 0.8276015334 | O12: =IF(couple?,yrs_c_4,yrs_4) -> 25 | P12: =IF(exists_2nd,LOOKUP(O12,yrs_array,surv_array),"") -> 0.1509478723
A13: 8 | B13: 75 | C13: 0 | D13: 0.0372 | E13: 0.8132902789 | I13: 0 | J13: 0 | K13: 0.1867097211 | L13: 0.8132902789 | M13: 0.7981630797 | O13: =IF(couple?,yrs_c_5,yrs_5) -> 30 | P13: =IF(exists_2nd,LOOKUP(O13,yrs_array,surv_array),"") -> 0.03665043287
A14: 9 | B14: 76 | C14: 0 | D14: 0.040898 | E14: 0.7830358805 | I14: 0 | J14: 0 | K14: 0.2169641195 | L14: 0.7830358805 | M14: 0.7670235798
A15: 10 | B15: 77 | C15: 0 | D15: 0.04504 | E15: 0.7510112791 | I15: 0 | J15: 0 | K15: 0.2489887209 | L15: 0.7510112791 | M15: 0.7340985051 | O15: future years | P15: Display? | R15: Display current option?
A16: 11 | B16: 78 | C16: 0 | D16: 0.049664 | E16: 0.717185731 | I16: 0 | J16: 0 | K16: 0.282814269 | L16: 0.717185731 | M16: 0.699376575 | O16: =IF(couple?,MIN(_age1,_age2),_age1)+O9 -> 77 | P16: =O16<=AGE_MAX -> TRUE | R16: =IF(opt_display="pct",P23,P16) -> TRUE
A17: 12 | B17: 79 | C17: 0 | D17: 0.054844 | E17: 0.6815674189 | I17: 0 | J17: 0 | K17: 0.3184325811 | L17: 0.6815674189 | M17: 0.6628774771 | O17: =IF(couple?,MIN(_age1,_age2),_age1)+O10 -> 82 | P17: =O17<=AGE_MAX -> TRUE | R17: =IF(opt_display="pct",P24,P17) -> TRUE
A18: 13 | B18: 80 | C18: 0 | D18: 0.060801 | E18: 0.6441875354 | I18: 0 | J18: 0 | K18: 0.3558124646 | L18: 0.6441875354 | M18: 0.6246039122 | O18: =IF(couple?,MIN(_age1,_age2),_age1)+O11 -> 87 | P18: =O18<=AGE_MAX -> TRUE | R18: =IF(opt_display="pct",P25,P18) -> TRUE
A19: 14 | B19: 81 | C19: 0 | D19: 0.067509 | E19: 0.605020289 | I19: 0 | J19: 0 | K19: 0.394979711 | L19: 0.605020289 | M19: 0.5845981317 | O19: =IF(couple?,MIN(_age1,_age2),_age1)+O12 -> 92 | P19: =O19<=AGE_MAX -> TRUE | R19: =IF(opt_display="pct",P26,P19) -> TRUE
A20: 15 | B20: 82 | C20: 0 | D20: 0.074779 | E20: 0.5641759743 | I20: 0 | J20: 0 | K20: 0.4358240257 | L20: 0.5641759743 | M20: 0.5430817168 | O20: =IF(couple?,MIN(_age1,_age2),_age1)+O13 -> 97 | P20: =O20<=AGE_MAX -> FALSE | R20: =IF(opt_display="pct",P27,P20) -> TRUE
A21: 16 | B21: 83 | C21: 0 | D21: 0.082589 | E21: 0.5219874592 | I21: 0 | J21: 0 | K21: 0.4780125408 | L21: 0.5219874592 | M21: 0.500432248
A22: 17 | B22: 84 | C22: 0 | D22: 0.091135 | E22: 0.4788770369 | I22: 0 | J22: 0 | K22: 0.5211229631 | L22: 0.4788770369 | M22: 0.4570558075 | O22: future percentile | P22: Display?
A23: 18 | B23: 85 | C23: 0 | D23: 0.10068 | E23: 0.4352345781 | I23: 0 | J23: 0 | K23: 0.5647654219 | L23: 0.4352345781 | M23: 0.4133248695 | O23: =IF(couple?,MIN(_age1,_age2),_age1)+T3 -> 83.51002653 | P23: =O23<=AGE_MAX -> TRUE
A24: 19 | B24: 86 | C24: 0 | D24: 0.111444 | E24: 0.3914151608 | I24: 0 | J24: 0 | K24: 0.6085848392 | L24: 0.3914151608 | M24: 0.3696047252 | O24: =IF(couple?,MIN(_age1,_age2),_age1)+T4 -> 85.80408596 | P24: =O24<=AGE_MAX -> TRUE
A25: 20 | B25: 87 | C25: 0 | D25: 0.123571 | E25: 0.3477942896 | I25: 0 | J25: 0 | K25: 0.6522057104 | L25: 0.3477942896 | M25: 0.3263056455 | O25: =IF(couple?,MIN(_age1,_age2),_age1)+T5 -> 88.11524386 | P25: =O25<=AGE_MAX -> TRUE
A26: 21 | B26: 88 | C26: 0 | D26: 0.137126 | E26: 0.3048170015 | I26: 0 | J26: 0 | K26: 0.6951829985 | L26: 0.3048170015 | M26: 0.2839178334 | O26: =IF(couple?,MIN(_age1,_age2),_age1)+T6 -> 90.61274311 | P26: =O26<=AGE_MAX -> TRUE
A27: 22 | B27: 89 | C27: 0 | D27: 0.152092 | E27: 0.2630186653 | I27: 0 | J27: 0 | K27: 0.7369813347 | L27: 0.2630186653 | M27: 0.2430171479 | O27: =IF(couple?,MIN(_age1,_age2),_age1)+T7 -> 93.7414273 | P27: =O27<=AGE_MAX -> TRUE
A28: 23 | B28: 90 | C28: 0 | D28: 0.168426 | E28: 0.2230156305 | I28: 0 | J28: 0 | K28: 0.7769843695 | L28: 0.2230156305 | M28: 0.2042348152
A29: 24 | B29: 91 | C29: 0 | D29: 0.186063 | E29: 0.1854539999 | I29: 0 | J29: 0 | K29: 0.8145460001 | L29: 0.1854539999 | M29: 0.1682009361
A30: 25 | B30: 92 | C30: 0 | D30: 0.204925 | E30: 0.1509478723 | I30: 0 | J30: 0 | K30: 0.8490521277 | L30: 0.1509478723 | M30: 0.1354813759
A31: 26 | B31: 93 | C31: 0 | D31: 0.224931 | E31: 0.1200148796 | I31: 0 | J31: 0 | K31: 0.8799851204 | L31: 0.1200148796 | M31: 0.1065173461
A32: 27 | B32: 94 | C32: 0 | D32: 0.245995 | E32: 0.0930198127 | I32: 0 | J32: 0 | K32: 0.9069801873 | L32: 0.0930198127 | M32: 0.08157860829
A33: 28 | B33: 95 | C33: 0 | D33: 0.266884 | E33: 0.07013740388 | I33: 0 | J33: 0 | K33: 0.9298625961 | L33: 0.07013740388 | M33: 0.06077812843
A34: 29 | B34: 96 | C34: 0 | D34: 0.287218 | E34: 0.05141885298 | I34: 0 | J34: 0 | K34: 0.948581147 | L34: 0.05141885298 | M34: 0.04403464292
A35: 30 | B35: 97 | C35: 0 | D35: 0.306593 | E35: 0.03665043287 | I35: 0 | J35: 0 | K35: 0.9633495671 | L35: 0.03665043287 | M35: 0.03103204978
A36: 31 | B36: 98 | C36: 0 | D36: 0.324599 | E36: 0.0254136667 | I36: 0 | J36: 0 | K36: 0.9745863333 | L36: 0.0254136667 | M36: 0.0212890413
A37: 32 | B37: 99 | C37: =IF(B37="","",mort_improve_rate) -> 0 | D37: =IF(B37="","",IF(_sex1="M",VLOOKUP(B37,mort_table_M,2)*(1-C37)^A37,VLOOKUP(B37,mort_table_F,2)*(1-C37)^A37)) -> 0.340829 | E37: 0.0171644159 | G37: =IF(F37="","",mort_improve_rate) ->  | H37: =IF(F37="","",IF(_sex2="M",VLOOKUP(F37,mort_table_M,2)*(1-G37)^A37,VLOOKUP(F37,mort_table_F,2)*(1-G37)^A37)) ->  | I37: 0 | J37: 0 | K37: 0.9828355841 | L37: 0.0171644159 | M37: 0.01423935055
A38: =IF(AND(B38="",F38=""),"",A37+1) -> 33 | B38: 100 | C38: 0 | D38: 0.35787 | E38: =IF(B38="",0,E37*(1-D37)) -> 0.0113142852 | I38: 0 | J38: 0 | K38: 0.9886857148 | L38: 0.0113142852 | M38: 0.009289763574
A39: 34 | B39: 101 | C39: 0 | D39: 0.375764 | E39: 0.007265241953 | I39: 0 | J39: 0 | K39: 0.992734758 | L39: 0.007265241953 | M39: 0.005900233764
A40: 35 | B40: 102 | C40: 0 | D40: 0.394552 | E40: 0.004535225576 | I40: 0 | J40: 0 | K40: 0.9954647744 | L40: 0.004535225576 | M40: 0.003640534415
A41: 36 | B41: 103 | C41: 0 | D41: 0.41428 | E41: 0.002745843254 | I41: 0 | J41: 0 | K41: 0.9972541567 | L41: 0.002745843254 | M41: 0.002177069283
A42: 37 | B42: 104 | C42: 0 | D42: 0.434993 | E42: 0.001608295311 | I42: 0 | J42: 0 | K42: 0.9983917047 | L42: 0.001608295311 | M42: 0.00125849671
A43: 38 | B43: 105 | C43: 0 | D43: 0.456743 | E43: 0.0009086981087 | I43: 0 | J43: 0 | K43: 0.9990913019 | L43: 0.0009086981087 | M43: 0.0007011773586
A44: 39 | B44: 106 | C44: 0 | D44: 0.47958 | E44: 0.0004936566085 | I44: 0 | J44: 0 | K44: 0.9995063434 | L44: 0.0004936566085 | M44: 0.0003752826903
A45: 40 | B45: 107 | C45: 0 | D45: 0.503559 | E45: 0.0002569087722 | I45: 0 | J45: 0 | K45: 0.9997430912 | L45: 0.0002569087722 | M45: 0.00019222441
A46: 41 | B46: 108 | C46: 0 | D46: 0.528737 | E46: 0.0001275400478 | I46: 0 | J46: 0 | K46: 0.99987246 | L46: 0.0001275400478 | M46: 9.382247665e-05
A47: 42 | B47: 109 | C47: 0 | D47: 0.555174 | E47: 6.010490553e-05 | I47: 0 | J47: 0 | K47: 0.9999398951 | L47: 6.010490553e-05 | M47: 4.342056512e-05
A48: 43 | B48: 110 | C48: 0 | D48: 0.582933 | E48: 2.673622471e-05 | I48: 0 | J48: 0 | K48: 0.9999732638 | L48: 2.673622471e-05 | M48: 1.894351087e-05
A49: 44 | B49: 111 | C49: 0 | D49: 0.61208 | E49: 1.115079703e-05 | I49: 0 | J49: 0 | K49: 0.9999888492 | L49: 1.115079703e-05 | M49: 7.738207107e-06
A50: 45 | B50: 112 | C50: 0 | D50: 0.642683 | E50: 4.325617184e-06 | I50: 0 | J50: 0 | K50: 0.9999956744 | L50: 4.325617184e-06 | M50: 2.93561687e-06
A51: 46 | B51: 113 | C51: 0 | D51: 0.674818 | E51: 1.545616555e-06 | I51: 0 | J51: 0 | K51: 0.9999984544 | L51: 1.545616555e-06 | M51: 1.024111619e-06
A52: 47 | B52: 114 | C52: 0 | D52: 0.708559 | E52: 5.026066827e-07 | I52: 0 | J52: 0 | K52: 0.9999994974 | L52: 5.026066827e-07 | M52: 3.245434384e-07
A53: 48 | B53: 115 | C53: 0 | D53: 0.743986 | E53: 1.464801942e-07 | I53: 0 | J53: 0 | K53: 0.9999998535 | L53: 1.464801942e-07 | M53: 9.199058733e-08
A54: 49 | B54: 116 | C54: 0 | D54: 0.781186 | E54: 3.750098044e-08 | I54: 0 | J54: 0 | K54: 0.9999999625 | L54: 3.750098044e-08 | M54: 2.285335999e-08
A55: 50 | B55: 117 | C55: 0 | D55: 0.820245 | E55: 8.205739534e-09 | I55: 0 | J55: 0 | K55: 0.9999999918 | L55: 8.205739534e-09 | M55: 4.840381122e-09
A56: 51 | B56: 118 | C56: 0 | D56: 0.861257 | E56: 1.47502271e-09 | I56: 0 | J56: 0 | K56: 0.9999999985 | L56: 1.47502271e-09 | M56: 8.398358929e-10
A57: 52 | B57: 119 | C57: 0 | D57: 0.90432 | E57: 2.046490758e-10 | I57: 0 | J57: 0 | K57: 0.9999999998 | L57: 2.046490758e-10 | M57: 1.121149497e-10
A58: 53 | B58: 120 | C58: 0 | D58: 1 | E58: 1.958082358e-11 | I58: 0 | J58: 0 | K58: 1 | L58: 1.958082358e-11 | M58: 9.790411789e-12
A59: 54 | B59: 121 | C59: 0 | D59: 1 | E59: 0 | I59: 0 | J59: 0 | K59: 1 | L59: 0 | M59: 0
A60: 55 | B60: 122 | C60: 0 | D60: 1 | E60: 0 | I60: 0 | J60: 0 | K60: 1 | L60: 0 | M60: 0
A61: 56 | B61: 123 | C61: 0 | D61: 1 | E61: 0 | I61: 0 | J61: 0 | K61: 1 | L61: 0 | M61: 0
A62: 57 | B62: 124 | C62: 0 | D62: 1 | E62: 0 | I62: 0 | J62: 0 | K62: 1 | L62: 0 | M62: 0
A63: 58 | B63: 125 | C63: 0 | D63: 1 | E63: 0 | I63: 0 | J63: 0 | K63: 1 | L63: 0 | M63: 0
A64: 59 | B64: 126 | C64: 0 | D64: 1 | E64: 0 | I64: 0 | J64: 0 | K64: 1 | L64: 0 | M64: 0
A65: 60 | B65: 127 | C65: 0 | D65: 1 | E65: 0 | I65: 0 | J65: 0 | K65: 1 | L65: 0 | M65: 0
A66: 61 | B66: 128 | C66: 0 | D66: 1 | E66: 0 | I66: 0 | J66: 0 | K66: 1 | L66: 0 | M66: 0
A67: 62 | B67: 129 | C67: 0 | D67: 1 | E67: 0 | I67: 0 | J67: 0 | K67: 1 | L67: 0 | M67: 0
A68: 63 | B68: 130 | C68: 0 | D68: 1 | E68: 0 | I68: 0 | J68: 0 | K68: 1 | L68: 0 | M68: 0
A69: 64 | B69: 131 | C69: =IF(B69="","",mort_improve_rate) -> 0 | D69: =IF(B69="","",IF(_sex1="M",VLOOKUP(B69,mort_table_M,2)*(1-C69)^A69,VLOOKUP(B69,mort_table_F,2)*(1-C69)^A69)) -> 1 | E69: 0 | G69: =IF(F69="","",mort_improve_rate) ->  | H69: =IF(F69="","",IF(_sex2="M",VLOOKUP(F69,mort_table_M,2)*(1-G69)^A69,VLOOKUP(F69,mort_table_F,2)*(1-G69)^A69)) ->  | I69: 0 | J69: 0 | K69: 1 | L69: 0 | M69: 0
A70: =IF(AND(B70="",F70=""),"",A69+1) -> 65 | B70: 132 | C70: 0 | D70: 1 | E70: =IF(B70="",0,E69*(1-D69)) -> 0 | I70: 0 | J70: 0 | K70: =1-L70 -> 1 | L70: =IF(AND(E70="",I70="",J70=""),"",E70+I70-J70) -> 0 | M70: =IntegralValue(opt_interp,L70,L71) -> 0
A71: 66 | B71: =IF(OR(B70="",AND(_sex1="M",B70=age_max_M),(AND(_sex1="F",B70=age_max_F))),"",B70+1) -> 133 | C71: 0 | D71: 1 | E71: 0 | F71: =IF(couple?,IF(OR(F70="",AND(_sex2="M",F70=age_max_M),(AND(_sex2="F",F70=age_max_F))),"",F70+1),"") ->  | I71: =IF(F71="",0,I70*(1-H70)) -> 0 | J71: =IF(OR(E71="",I71=""),0,E71*I71) -> 0 | K71: 1 | L71: 0 | M71: 0
A72: 67 | B72: 134 | C72: 0 | D72: 1 | E72: 0 | I72: 0 | J72: 0 | K72: 1 | L72: 0 | M72: 0
A73: 68 | B73: 135 | C73: 0 | D73: 1 | E73: 0 | I73: 0 | J73: 0 | K73: 1 | L73: 0 | M73: 0
A74: 69 | B74: 136 | C74: 0 | D74: 1 | E74: 0 | I74: 0 | J74: 0 | K74: 1 | L74: 0 | M74: 0
A75: 70 | B75: 137 | C75: 0 | D75: 1 | E75: 0 | I75: 0 | J75: 0 | K75: 1 | L75: 0 | M75: 0
A76: 71 | B76: 138 | C76: 0 | D76: 1 | E76: 0 | I76: 0 | J76: 0 | K76: 1 | L76: 0 | M76: 0
A77: 72 | B77: 139 | C77: 0 | D77: 1 | E77: 0 | I77: 0 | J77: 0 | K77: 1 | L77: 0 | M77: 0
A78: 73 | B78: 140 | C78: 0 | D78: 1 | E78: 0 | I78: 0 | J78: 0 | K78: 1 | L78: 0 | M78: 0
E79: 0 | I79: 0 | J79: 0 | K79: 1 | L79: 0 | M79: 0
E80: 0 | I80: 0 | J80: 0 | K80: 1 | L80: 0 | M80: 0
B81: =IF(OR(B80="",AND(_sex1="M",B80=age_max_M),(AND(_sex1="F",B80=age_max_F))),"",B80+1) ->  | E81: 0 | I81: 0 | J81: 0 | K81: 1 | L81: 0 | M81: 0
E82: 0 | I82: 0 | J82: 0 | K82: 1 | L82: 0 | M82: 0
E83: 0 | I83: 0 | J83: 0 | K83: 1 | L83: 0 | M83: 0
E84: 0 | I84: 0 | J84: 0 | K84: 1 | L84: 0 | M84: 0
E85: 0 | I85: 0 | J85: 0 | K85: 1 | L85: 0 | M85: 0
E86: 0 | I86: 0 | J86: 0 | K86: 1 | L86: 0 | M86: 0
E87: 0 | I87: 0 | J87: 0 | K87: 1 | L87: 0 | M87: 0
E88: 0 | I88: 0 | J88: 0 | K88: 1 | L88: 0 | M88: 0
E89: 0 | I89: 0 | J89: 0 | K89: 1 | L89: 0 | M89: 0
E90: 0 | I90: 0 | J90: 0 | K90: 1 | L90: 0 | M90: 0
E91: 0 | I91: 0 | J91: 0 | K91: 1 | L91: 0 | M91: 0
E92: 0 | I92: 0 | J92: 0 | K92: 1 | L92: 0 | M92: 0
E93: 0 | I93: 0 | J93: 0 | K93: 1 | L93: 0 | M93: 0
E94: 0 | I94: 0 | J94: 0 | K94: 1 | L94: 0 | M94: 0
E95: 0 | I95: 0 | J95: 0 | K95: 1 | L95: 0 | M95: 0
E96: 0 | I96: 0 | J96: 0 | K96: 1 | L96: 0 | M96: 0
E97: 0 | I97: 0 | J97: 0 | K97: 1 | L97: 0 | M97: 0
E98: 0 | I98: 0 | J98: 0 | K98: 1 | L98: 0 | M98: 0
E99: 0 | I99: 0 | J99: 0 | K99: 1 | L99: 0 | M99: 0
E100: 0 | I100: 0 | J100: 0 | K100: 1 | L100: 0 | M100: 0
C101: =IF(B101="","",mort_improve_rate) ->  | D101: =IF(B101="","",IF(_sex1="M",VLOOKUP(B101,mort_table_M,2)*(1-C101)^A101,VLOOKUP(B101,mort_table_F,2)*(1-C101)^A101)) ->  | E101: 0 | G101: =IF(F101="","",mort_improve_rate) ->  | H101: =IF(F101="","",IF(_sex2="M",VLOOKUP(F101,mort_table_M,2)*(1-G101)^A101,VLOOKUP(F101,mort_table_F,2)*(1-G101)^A101)) ->  | I101: 0 | J101: 0 | K101: 1 | L101: 0 | M101: 0
A102: =IF(AND(B102="",F102=""),"",A101+1) ->  | E102: =IF(B102="",0,E101*(1-D101)) -> 0 | I102: 0 | J102: 0 | K102: 1 | L102: 0 | M102: 0
E103: 0 | I103: 0 | J103: 0 | K103: 1 | L103: 0 | M103: 0
E104: 0 | I104: 0 | J104: 0 | K104: 1 | L104: 0 | M104: 0
E105: 0 | I105: 0 | J105: 0 | K105: 1 | L105: 0 | M105: 0
E106: 0 | I106: 0 | J106: 0 | K106: 1 | L106: 0 | M106: 0
E107: 0 | I107: 0 | J107: 0 | K107: 1 | L107: 0 | M107: 0
E108: 0 | I108: 0 | J108: 0 | K108: 1 | L108: 0 | M108: 0
E109: 0 | I109: 0 | J109: 0 | K109: 1 | L109: 0 | M109: 0
E110: 0 | I110: 0 | J110: 0 | K110: 1 | L110: 0 | M110: 0
E111: 0 | I111: 0 | J111: 0 | K111: 1 | L111: 0 | M111: 0
E112: 0 | I112: 0 | J112: 0 | K112: 1 | L112: 0 | M112: 0
E113: 0 | I113: 0 | J113: 0 | K113: 1 | L113: 0 | M113: 0
E114: 0 | I114: 0 | J114: 0 | K114: 1 | L114: 0 | M114: 0
E115: 0 | I115: 0 | J115: 0 | K115: 1 | L115: 0 | M115: 0
E116: 0 | I116: 0 | J116: 0 | K116: 1 | L116: 0 | M116: 0
E117: 0 | I117: 0 | J117: 0 | K117: 1 | L117: 0 | M117: 0
E118: 0 | I118: 0 | J118: 0 | K118: 1 | L118: 0 | M118: 0
E119: 0 | I119: 0 | J119: 0 | K119: 1 | L119: 0 | M119: 0
E120: 0 | I120: 0 | J120: 0 | K120: 1 | L120: 0 | M120: 0
E121: 0 | I121: 0 | J121: 0 | K121: 1 | L121: 0 | M121: 0
E122: 0 | I122: 0 | J122: 0 | K122: 1 | L122: 0 | M122: 0
E123: 0 | I123: 0 | J123: 0 | K123: 1 | L123: 0 | M123: 0
E124: 0 | I124: 0 | J124: 0 | K124: 1 | L124: 0 | M124: 0
E125: 0 | I125: 0 | J125: 0 | K125: 1 | L125: 0 | M125: 0
E126: 0 | I126: 0 | J126: 0 | K126: 1 | L126: 0 | M126: 0
E127: 0 | I127: 0 | J127: 0 | K127: 1 | L127: 0 | M127: 0
E128: 0 | I128: 0 | J128: 0 | K128: 1 | L128: 0 | M128: 0
E129: 0 | I129: 0 | J129: 0 | K129: 1 | L129: 0 | M129: 0
E130: 0 | I130: 0 | J130: 0 | K130: 1 | L130: 0 | M130: 0
E131: 0 | I131: 0 | J131: 0 | K131: 1 | L131: 0 | M131: 0
E132: 0 | I132: 0 | J132: 0 | K132: 1 | L132: 0 | M132: 0
C133: =IF(B133="","",mort_improve_rate) ->  | D133: =IF(B133="","",IF(_sex1="M",VLOOKUP(B133,mort_table_M,2)*(1-C133)^A133,VLOOKUP(B133,mort_table_F,2)*(1-C133)^A133)) ->  | E133: 0 | G133: =IF(F133="","",mort_improve_rate) ->  | H133: =IF(F133="","",IF(_sex2="M",VLOOKUP(F133,mort_table_M,2)*(1-G133)^A133,VLOOKUP(F133,mort_table_F,2)*(1-G133)^A133)) ->  | I133: 0 | J133: 0 | K133: 1 | L133: 0 | M133: 0
A134: =IF(AND(B134="",F134=""),"",A133+1) ->  | E134: =IF(B134="",0,E133*(1-D133)) -> 0 | I134: 0 | J134: 0 | K134: =1-L134 -> 1 | L134: =IF(AND(E134="",I134="",J134=""),"",E134+I134-J134) -> 0 | M134: =IntegralValue(opt_interp,L134,L135) -> 0
E135: 0 | F135: =IF(couple?,IF(OR(F134="",AND(_sex2="M",F134=age_max_M),(AND(_sex2="F",F134=age_max_F))),"",F134+1),"") ->  | I135: =IF(F135="",0,I134*(1-H134)) -> 0 | J135: =IF(OR(E135="",I135=""),0,E135*I135) -> 0 | K135: 1 | L135: 0 | M135: 0
E136: 0 | I136: 0 | J136: 0 | K136: 1 | L136: 0 | M136: 0
E137: 0 | I137: 0 | J137: 0 | K137: 1 | L137: 0 | M137: 0
E138: 0 | I138: 0 | J138: 0 | K138: 1 | L138: 0 | M138: 0
E139: 0 | I139: 0 | J139: 0 | K139: 1 | L139: 0 | M139: 0
E140: 0 | I140: 0 | J140: 0 | K140: 1 | L140: 0 | M140: 0
E141: 0 | I141: 0 | J141: 0 | K141: 1 | L141: 0 | M141: 0
E142: 0 | I142: 0 | J142: 0 | K142: 1 | L142: 0 | M142: 0
E143: 0 | I143: 0 | J143: 0 | K143: 1 | L143: 0 | M143: 0
E144: 0 | I144: 0 | J144: 0 | K144: 1 | L144: 0 | M144: 0
B145: =IF(OR(B144="",AND(_sex1="M",B144=age_max_M),(AND(_sex1="F",B144=age_max_F))),"",B144+1) ->  | E145: 0 | I145: 0 | J145: 0 | K145: 1 | L145: 0 | M145: 0
E146: 0 | I146: 0 | J146: 0 | K146: 1 | L146: 0 | M146: 0
E147: 0 | I147: 0 | J147: 0 | K147: 1 | L147: 0 | M147: 0
E148: 0 | I148: 0 | J148: 0 | K148: 1 | L148: 0 | M148: 0
E149: 0 | I149: 0 | J149: 0 | K149: 1 | L149: 0 | M149: 0
E150: 0 | I150: 0 | J150: 0 | K150: 1 | L150: 0 | M150: 0
E151: 0 | I151: 0 | J151: 0 | K151: 1 | L151: 0 | M151: 0
E152: 0 | I152: 0 | J152: 0 | K152: 1 | L152: 0 | M152: 0
E153: 0 | I153: 0 | J153: 0 | K153: 1 | L153: 0 | M153: 0
E154: 0 | I154: 0 | J154: 0 | K154: 1 | L154: 0 | M154: 0
E155: 0 | I155: 0 | J155: 0 | K155: 1 | L155: 0 | M155: 0
E156: 0 | I156: 0 | J156: 0 | K156: 1 | L156: 0 | M156: 0
E157: 0 | I157: 0 | J157: 0 | K157: 1 | L157: 0 | M157: 0
E158: 0 | I158: 0 | J158: 0 | K158: 1 | L158: 0 | M158: 0
E159: 0 | I159: 0 | J159: 0 | K159: 1 | L159: 0 | M159: 0
E160: 0 | I160: 0 | J160: 0 | K160: 1 | L160: 0 | M160: 0

Sheet working tables (hidden)
B1: Male mortality table: | D1: New Male Mortality Table | G1: Female mortality table: | I1: New Female Mortality Table
B2: =opt_table_M -> SSM | D2: min age: | E2: =MIN(D5:D140) -> 6 | G2: =opt_table_F -> SSF | I2: min age: | J2: =MIN(I5:I140) -> 6
D3: max age: | E3: =MAX(D6:D141) -> 140 | I3: max age: | J3: =MAX(I6:I141) -> 140
A4: Age: | B4: q_x | C4: q_(x-1) | D4: New age | E4: qnew_x | F4: Age: | G4: q_x | H4: q_(x-1)
A5: ='Mortality tables'!C3 -> 5 | B5: =HLOOKUP(opt_table_M,MORT_TABLES,A5-2,FALSE) -> 0.000158 | E5: =B5 -> 0.000158 | F5: ='Mortality tables'!C3 -> 5 | G5: =HLOOKUP(opt_table_F,MORT_TABLES,A5-2,FALSE) -> 0.000127 | J5: =G5 -> 0.000127
A6: ='Mortality tables'!C4 -> 6 | B6: =HLOOKUP(opt_table_M,MORT_TABLES,A6-2,FALSE) -> 0.000147 | C6: =B5 -> 0.000158 | D6: =A6+setback_yrs_M -> 6 | E6: =B6 -> 0.000147 | F6: ='Mortality tables'!C4 -> 6 | G6: 0.000116 | H6: =G5 -> 0.000127 | I6: =F6+setback_yrs_F -> 6 | J6: =G6 -> 0.000116
A7: ='Mortality tables'!C5 -> 7 | B7: 0.000136 | C7: =B6 -> 0.000147 | D7: 7 | E7: 0.000136 | F7: ='Mortality tables'!C5 -> 7 | G7: 0.000106 | H7: =G6 -> 0.000116 | I7: 7 | J7: 0.000106
A8: ='Mortality tables'!C6 -> 8 | B8: 0.000121 | C8: 0.000136 | D8: 8 | E8: 0.000121 | F8: ='Mortality tables'!C6 -> 8 | G8: 9.8e-05 | H8: 0.000106 | I8: 8 | J8: 9.8e-05
A9: ='Mortality tables'!C7 -> 9 | B9: 0.000104 | C9: 0.000121 | D9: 9 | E9: 0.000104 | F9: ='Mortality tables'!C7 -> 9 | G9: 9.1e-05 | H9: 9.8e-05 | I9: 9 | J9: 9.1e-05
A10: ='Mortality tables'!C8 -> 10 | B10: 9.2e-05 | C10: 0.000104 | D10: 10 | E10: 9.2e-05 | F10: ='Mortality tables'!C8 -> 10 | G10: 8.6e-05 | H10: 9.1e-05 | I10: 10 | J10: 8.6e-05
A11: ='Mortality tables'!C9 -> 11 | B11: 9.7e-05 | C11: 9.2e-05 | D11: 11 | E11: 9.7e-05 | F11: ='Mortality tables'!C9 -> 11 | G11: 8.9e-05 | H11: 8.6e-05 | I11: 11 | J11: 8.9e-05
A12: ='Mortality tables'!C10 -> 12 | B12: 0.000134 | C12: 9.7e-05 | D12: 12 | E12: 0.000134 | F12: ='Mortality tables'!C10 -> 12 | G12: 0.000102 | H12: 8.9e-05 | I12: 12 | J12: 0.000102
A13: ='Mortality tables'!C11 -> 13 | B13: 0.00021 | C13: 0.000134 | D13: 13 | E13: 0.00021 | F13: ='Mortality tables'!C11 -> 13 | G13: 0.000128 | H13: 0.000102 | I13: 13 | J13: 0.000128
A14: ='Mortality tables'!C12 -> 14 | B14: 0.000317 | C14: 0.00021 | D14: 14 | E14: 0.000317 | F14: ='Mortality tables'!C12 -> 14 | G14: 0.000164 | H14: 0.000128 | I14: 14 | J14: 0.000164
A15: ='Mortality tables'!C13 -> 15 | B15: 0.000433 | C15: 0.000317 | D15: 15 | E15: 0.000433 | F15: ='Mortality tables'!C13 -> 15 | G15: 0.000205 | H15: 0.000164 | I15: 15 | J15: 0.000205
A16: ='Mortality tables'!C14 -> 16 | B16: 0.000547 | C16: 0.000433 | D16: 16 | E16: 0.000547 | F16: ='Mortality tables'!C14 -> 16 | G16: 0.000246 | H16: 0.000205 | I16: 16 | J16: 0.000246
A17: ='Mortality tables'!C15 -> 17 | B17: 0.000672 | C17: 0.000547 | D17: 17 | E17: 0.000672 | F17: ='Mortality tables'!C15 -> 17 | G17: 0.000285 | H17: 0.000246 | I17: 17 | J17: 0.000285
A18: ='Mortality tables'!C16 -> 18 | B18: 0.000805 | C18: 0.000672 | D18: 18 | E18: 0.000805 | F18: ='Mortality tables'!C16 -> 18 | G18: 0.000319 | H18: 0.000285 | I18: 18 | J18: 0.000319
A19: ='Mortality tables'!C17 -> 19 | B19: 0.000941 | C19: 0.000805 | D19: 19 | E19: 0.000941 | F19: ='Mortality tables'!C17 -> 19 | G19: 0.00035 | H19: 0.000319 | I19: 19 | J19: 0.00035
A20: ='Mortality tables'!C18 -> 20 | B20: 0.001084 | C20: 0.000941 | D20: 20 | E20: 0.001084 | F20: ='Mortality tables'!C18 -> 20 | G20: 0.000383 | H20: 0.00035 | I20: 20 | J20: 0.000383
A21: ='Mortality tables'!C19 -> 21 | B21: 0.001219 | C21: 0.001084 | D21: 21 | E21: 0.001219 | F21: ='Mortality tables'!C19 -> 21 | G21: 0.000417 | H21: 0.000383 | I21: 21 | J21: 0.000417
A22: ='Mortality tables'!C20 -> 22 | B22: 0.001314 | C22: 0.001219 | D22: 22 | E22: 0.001314 | F22: ='Mortality tables'!C20 -> 22 | G22: 0.000446 | H22: 0.000417 | I22: 22 | J22: 0.000446
A23: ='Mortality tables'!C21 -> 23 | B23: 0.001357 | C23: 0.001314 | D23: 23 | E23: 0.001357 | F23: ='Mortality tables'!C21 -> 23 | G23: 0.000469 | H23: 0.000446 | I23: 23 | J23: 0.000469
A24: ='Mortality tables'!C22 -> 24 | B24: 0.001362 | C24: 0.001357 | D24: 24 | E24: 0.001362 | F24: ='Mortality tables'!C22 -> 24 | G24: 0.000487 | H24: 0.000469 | I24: 24 | J24: 0.000487
A25: ='Mortality tables'!C23 -> 25 | B25: 0.001353 | C25: 0.001362 | D25: 25 | E25: 0.001353 | F25: ='Mortality tables'!C23 -> 25 | G25: 0.000505 | H25: 0.000487 | I25: 25 | J25: 0.000505
A26: ='Mortality tables'!C24 -> 26 | B26: 0.00135 | C26: 0.001353 | D26: 26 | E26: 0.00135 | F26: ='Mortality tables'!C24 -> 26 | G26: 0.000525 | H26: 0.000505 | I26: 26 | J26: 0.000525
A27: ='Mortality tables'!C25 -> 27 | B27: 0.001353 | C27: 0.00135 | D27: 27 | E27: 0.001353 | F27: ='Mortality tables'!C25 -> 27 | G27: 0.000551 | H27: 0.000525 | I27: 27 | J27: 0.000551
A28: ='Mortality tables'!C26 -> 28 | B28: 0.001371 | C28: 0.001353 | D28: 28 | E28: 0.001371 | F28: ='Mortality tables'!C26 -> 28 | G28: 0.000585 | H28: 0.000551 | I28: 28 | J28: 0.000585
A29: ='Mortality tables'!C27 -> 29 | B29: 0.001399 | C29: 0.001371 | D29: 29 | E29: 0.001399 | F29: ='Mortality tables'!C27 -> 29 | G29: 0.000626 | H29: 0.000585 | I29: 29 | J29: 0.000626
A30: ='Mortality tables'!C28 -> 30 | B30: 0.001432 | C30: 0.001399 | D30: 30 | E30: 0.001432 | F30: ='Mortality tables'!C28 -> 30 | G30: 0.000672 | H30: 0.000626 | I30: 30 | J30: 0.000672
A31: ='Mortality tables'!C29 -> 31 | B31: 0.001464 | C31: 0.001432 | D31: 31 | E31: 0.001464 | F31: ='Mortality tables'!C29 -> 31 | G31: 0.00072 | H31: 0.000672 | I31: 31 | J31: 0.00072
A32: ='Mortality tables'!C30 -> 32 | B32: 0.001497 | C32: 0.001464 | D32: 32 | E32: 0.001497 | F32: ='Mortality tables'!C30 -> 32 | G32: 0.000766 | H32: 0.00072 | I32: 32 | J32: 0.000766
A33: ='Mortality tables'!C31 -> 33 | B33: 0.00153 | C33: 0.001497 | D33: 33 | E33: 0.00153 | F33: ='Mortality tables'!C31 -> 33 | G33: 0.000806 | H33: 0.000766 | I33: 33 | J33: 0.000806
A34: ='Mortality tables'!C32 -> 34 | B34: 0.001568 | C34: 0.00153 | D34: 34 | E34: 0.001568 | F34: ='Mortality tables'!C32 -> 34 | G34: 0.000846 | H34: 0.000806 | I34: 34 | J34: 0.000846
A35: ='Mortality tables'!C33 -> 35 | B35: 0.001617 | C35: 0.001568 | D35: 35 | E35: 0.001617 | F35: ='Mortality tables'!C33 -> 35 | G35: 0.000891 | H35: 0.000846 | I35: 35 | J35: 0.000891
A36: ='Mortality tables'!C34 -> 36 | B36: 0.001682 | C36: 0.001617 | D36: 36 | E36: 0.001682 | F36: ='Mortality tables'!C34 -> 36 | G36: 0.000946 | H36: 0.000891 | I36: 36 | J36: 0.000946
A37: ='Mortality tables'!C35 -> 37 | B37: 0.001759 | C37: 0.001682 | D37: 37 | E37: 0.001759 | F37: ='Mortality tables'!C35 -> 37 | G37: =HLOOKUP(opt_table_F,MORT_TABLES,A37-2,FALSE) -> 0.001013 | H37: 0.000946 | I37: 37 | J37: 0.001013
A38: ='Mortality tables'!C36 -> 38 | B38: 0.001852 | C38: 0.001759 | D38: =A38+setback_yrs_M -> 38 | E38: 0.001852 | F38: ='Mortality tables'!C36 -> 38 | G38: 0.001094 | H38: 0.001013 | I38: =F38+setback_yrs_F -> 38 | J38: 0.001094
A39: ='Mortality tables'!C37 -> 39 | B39: 0.001963 | C39: 0.001852 | D39: 39 | E39: 0.001963 | F39: ='Mortality tables'!C37 -> 39 | G39: 0.00119 | H39: 0.001094 | I39: 39 | J39: 0.00119
A40: ='Mortality tables'!C38 -> 40 | B40: 0.002092 | C40: 0.001963 | D40: 40 | E40: 0.002092 | F40: ='Mortality tables'!C38 -> 40 | G40: 0.001296 | H40: 0.00119 | I40: 40 | J40: 0.001296
A41: ='Mortality tables'!C39 -> 41 | B41: 0.002246 | C41: 0.002092 | D41: 41 | E41: 0.002246 | F41: ='Mortality tables'!C39 -> 41 | G41: 0.001413 | H41: 0.001296 | I41: 41 | J41: 0.001413
A42: ='Mortality tables'!C40 -> 42 | B42: 0.002436 | C42: 0.002246 | D42: 42 | E42: 0.002436 | F42: ='Mortality tables'!C40 -> 42 | G42: 0.001549 | H42: 0.001413 | I42: 42 | J42: 0.001549
A43: ='Mortality tables'!C41 -> 43 | B43: 0.002669 | C43: 0.002436 | D43: 43 | E43: 0.002669 | F43: ='Mortality tables'!C41 -> 43 | G43: 0.001706 | H43: 0.001549 | I43: 43 | J43: 0.001706
A44: ='Mortality tables'!C42 -> 44 | B44: 0.002942 | C44: 0.002669 | D44: 44 | E44: 0.002942 | F44: ='Mortality tables'!C42 -> 44 | G44: 0.001881 | H44: 0.001706 | I44: 44 | J44: 0.001881
A45: ='Mortality tables'!C43 -> 45 | B45: 0.003244 | C45: 0.002942 | D45: 45 | E45: 0.003244 | F45: ='Mortality tables'!C43 -> 45 | G45: 0.002069 | H45: 0.001881 | I45: 45 | J45: 0.002069
A46: ='Mortality tables'!C44 -> 46 | B46: 0.003571 | C46: 0.003244 | D46: 46 | E46: 0.003571 | F46: ='Mortality tables'!C44 -> 46 | G46: 0.00227 | H46: 0.002069 | I46: 46 | J46: 0.00227
A47: ='Mortality tables'!C45 -> 47 | B47: 0.003926 | C47: 0.003571 | D47: 47 | E47: 0.003926 | F47: ='Mortality tables'!C45 -> 47 | G47: 0.002486 | H47: 0.00227 | I47: 47 | J47: 0.002486
A48: ='Mortality tables'!C46 -> 48 | B48: 0.004309 | C48: 0.003926 | D48: 48 | E48: 0.004309 | F48: ='Mortality tables'!C46 -> 48 | G48: 0.002716 | H48: 0.002486 | I48: 48 | J48: 0.002716
A49: ='Mortality tables'!C47 -> 49 | B49: 0.004719 | C49: 0.004309 | D49: 49 | E49: 0.004719 | F49: ='Mortality tables'!C47 -> 49 | G49: 0.00296 | H49: 0.002716 | I49: 49 | J49: 0.00296
A50: ='Mortality tables'!C48 -> 50 | B50: 0.005156 | C50: 0.004719 | D50: 50 | E50: 0.005156 | F50: ='Mortality tables'!C48 -> 50 | G50: 0.003226 | H50: 0.00296 | I50: 50 | J50: 0.003226
A51: ='Mortality tables'!C49 -> 51 | B51: 0.005622 | C51: 0.005156 | D51: 51 | E51: 0.005622 | F51: ='Mortality tables'!C49 -> 51 | G51: 0.003505 | H51: 0.003226 | I51: 51 | J51: 0.003505
A52: ='Mortality tables'!C50 -> 52 | B52: 0.006121 | C52: 0.005622 | D52: 52 | E52: 0.006121 | F52: ='Mortality tables'!C50 -> 52 | G52: 0.003779 | H52: 0.003505 | I52: 52 | J52: 0.003779
A53: ='Mortality tables'!C51 -> 53 | B53: 0.006656 | C53: 0.006121 | D53: 53 | E53: 0.006656 | F53: ='Mortality tables'!C51 -> 53 | G53: 0.00404 | H53: 0.003779 | I53: 53 | J53: 0.00404
A54: ='Mortality tables'!C52 -> 54 | B54: 0.007222 | C54: 0.006656 | D54: 54 | E54: 0.007222 | F54: ='Mortality tables'!C52 -> 54 | G54: 0.004301 | H54: 0.00404 | I54: 54 | J54: 0.004301
A55: ='Mortality tables'!C53 -> 55 | B55: 0.007844 | C55: 0.007222 | D55: 55 | E55: 0.007844 | F55: ='Mortality tables'!C53 -> 55 | G55: 0.004592 | H55: 0.004301 | I55: 55 | J55: 0.004592
A56: ='Mortality tables'!C54 -> 56 | B56: 0.008493 | C56: 0.007844 | D56: 56 | E56: 0.008493 | F56: ='Mortality tables'!C54 -> 56 | G56: 0.00492 | H56: 0.004592 | I56: 56 | J56: 0.00492
A57: ='Mortality tables'!C55 -> 57 | B57: 0.009116 | C57: 0.008493 | D57: 57 | E57: 0.009116 | F57: ='Mortality tables'!C55 -> 57 | G57: 0.005266 | H57: 0.00492 | I57: 57 | J57: 0.005266
A58: ='Mortality tables'!C56 -> 58 | B58: 0.00969 | C58: 0.009116 | D58: 58 | E58: 0.00969 | F58: ='Mortality tables'!C56 -> 58 | G58: 0.00563 | H58: 0.005266 | I58: 58 | J58: 0.00563
A59: ='Mortality tables'!C57 -> 59 | B59: 0.010253 | C59: 0.00969 | D59: 59 | E59: 0.010253 | F59: ='Mortality tables'!C57 -> 59 | G59: 0.006028 | H59: 0.00563 | I59: 59 | J59: 0.006028
A60: ='Mortality tables'!C58 -> 60 | B60: 0.010872 | C60: 0.010253 | D60: 60 | E60: 0.010872 | F60: ='Mortality tables'!C58 -> 60 | G60: 0.006479 | H60: 0.006028 | I60: 60 | J60: 0.006479
A61: ='Mortality tables'!C59 -> 61 | B61: 0.011591 | C61: 0.010872 | D61: 61 | E61: 0.011591 | F61: ='Mortality tables'!C59 -> 61 | G61: 0.007001 | H61: 0.006479 | I61: 61 | J61: 0.007001
A62: ='Mortality tables'!C60 -> 62 | B62: 0.012403 | C62: 0.011591 | D62: 62 | E62: 0.012403 | F62: ='Mortality tables'!C60 -> 62 | G62: 0.007602 | H62: 0.007001 | I62: 62 | J62: 0.007602
A63: ='Mortality tables'!C61 -> 63 | B63: 0.013325 | C63: 0.012403 | D63: 63 | E63: 0.013325 | F63: ='Mortality tables'!C61 -> 63 | G63: 0.008294 | H63: 0.007602 | I63: 63 | J63: 0.008294
A64: ='Mortality tables'!C62 -> 64 | B64: 0.01437 | C64: 0.013325 | D64: 64 | E64: 0.01437 | F64: ='Mortality tables'!C62 -> 64 | G64: 0.009082 | H64: 0.008294 | I64: 64 | J64: 0.009082
A65: ='Mortality tables'!C63 -> 65 | B65: 0.015553 | C65: 0.01437 | D65: 65 | E65: 0.015553 | F65: ='Mortality tables'!C63 -> 65 | G65: 0.00999 | H65: 0.009082 | I65: 65 | J65: 0.00999
A66: ='Mortality tables'!C64 -> 66 | B66: 0.016878 | C66: 0.015553 | D66: 66 | E66: 0.016878 | F66: ='Mortality tables'!C64 -> 66 | G66: 0.011005 | H66: 0.00999 | I66: 66 | J66: 0.011005
A67: ='Mortality tables'!C65 -> 67 | B67: 0.018348 | C67: 0.016878 | D67: 67 | E67: 0.018348 | F67: ='Mortality tables'!C65 -> 67 | G67: 0.012097 | H67: 0.011005 | I67: 67 | J67: 0.012097
A68: ='Mortality tables'!C66 -> 68 | B68: 0.019969 | C68: 0.018348 | D68: 68 | E68: 0.019969 | F68: ='Mortality tables'!C66 -> 68 | G68: 0.013261 | H68: 0.012097 | I68: 68 | J68: 0.013261
A69: ='Mortality tables'!C67 -> 69 | B69: 0.021766 | C69: 0.019969 | D69: 69 | E69: 0.021766 | F69: ='Mortality tables'!C67 -> 69 | G69: =HLOOKUP(opt_table_F,MORT_TABLES,A69-2,FALSE) -> 0.014529 | H69: 0.013261 | I69: 69 | J69: 0.014529
A70: ='Mortality tables'!C68 -> 70 | B70: =HLOOKUP(opt_table_M,MORT_TABLES,A70-2,FALSE) -> 0.02384 | C70: 0.021766 | D70: =A70+setback_yrs_M -> 70 | E70: =B70 -> 0.02384 | F70: ='Mortality tables'!C68 -> 70 | G70: 0.015991 | H70: 0.014529 | I70: =F70+setback_yrs_F -> 70 | J70: =G70 -> 0.015991
A71: ='Mortality tables'!C69 -> 71 | B71: 0.026162 | C71: =B70 -> 0.02384 | D71: 71 | E71: 0.026162 | F71: ='Mortality tables'!C69 -> 71 | G71: 0.017662 | H71: =G70 -> 0.015991 | I71: 71 | J71: 0.017662
A72: ='Mortality tables'!C70 -> 72 | B72: 0.028625 | C72: 0.026162 | D72: 72 | E72: 0.028625 | F72: ='Mortality tables'!C70 -> 72 | G72: 0.019486 | H72: 0.017662 | I72: 72 | J72: 0.019486
A73: ='Mortality tables'!C71 -> 73 | B73: 0.031204 | C73: 0.028625 | D73: 73 | E73: 0.031204 | F73: ='Mortality tables'!C71 -> 73 | G73: 0.021467 | H73: 0.019486 | I73: 73 | J73: 0.021467
A74: ='Mortality tables'!C72 -> 74 | B74: 0.033997 | C74: 0.031204 | D74: 74 | E74: 0.033997 | F74: ='Mortality tables'!C72 -> 74 | G74: 0.023658 | H74: 0.021467 | I74: 74 | J74: 0.023658
A75: ='Mortality tables'!C73 -> 75 | B75: 0.0372 | C75: 0.033997 | D75: 75 | E75: 0.0372 | F75: ='Mortality tables'!C73 -> 75 | G75: 0.026223 | H75: 0.023658 | I75: 75 | J75: 0.026223
A76: ='Mortality tables'!C74 -> 76 | B76: 0.040898 | C76: 0.0372 | D76: 76 | E76: 0.040898 | F76: ='Mortality tables'!C74 -> 76 | G76: 0.029159 | H76: 0.026223 | I76: 76 | J76: 0.029159
A77: ='Mortality tables'!C75 -> 77 | B77: 0.04504 | C77: 0.040898 | D77: 77 | E77: 0.04504 | F77: ='Mortality tables'!C75 -> 77 | G77: 0.032331 | H77: 0.029159 | I77: 77 | J77: 0.032331
A78: ='Mortality tables'!C76 -> 78 | B78: 0.049664 | C78: 0.04504 | D78: 78 | E78: 0.049664 | F78: ='Mortality tables'!C76 -> 78 | G78: 0.035725 | H78: 0.032331 | I78: 78 | J78: 0.035725
A79: ='Mortality tables'!C77 -> 79 | B79: 0.054844 | C79: 0.049664 | D79: 79 | E79: 0.054844 | F79: ='Mortality tables'!C77 -> 79 | G79: 0.039469 | H79: 0.035725 | I79: 79 | J79: 0.039469
A80: ='Mortality tables'!C78 -> 80 | B80: 0.060801 | C80: 0.054844 | D80: 80 | E80: 0.060801 | F80: ='Mortality tables'!C78 -> 80 | G80: 0.043828 | H80: 0.039469 | I80: 80 | J80: 0.043828
A81: ='Mortality tables'!C79 -> 81 | B81: 0.067509 | C81: 0.060801 | D81: 81 | E81: 0.067509 | F81: ='Mortality tables'!C79 -> 81 | G81: 0.048896 | H81: 0.043828 | I81: 81 | J81: 0.048896
A82: ='Mortality tables'!C80 -> 82 | B82: 0.074779 | C82: 0.067509 | D82: 82 | E82: 0.074779 | F82: ='Mortality tables'!C80 -> 82 | G82: 0.054577 | H82: 0.048896 | I82: 82 | J82: 0.054577
A83: ='Mortality tables'!C81 -> 83 | B83: 0.082589 | C83: 0.074779 | D83: 83 | E83: 0.082589 | F83: ='Mortality tables'!C81 -> 83 | G83: 0.060909 | H83: 0.054577 | I83: 83 | J83: 0.060909
A84: ='Mortality tables'!C82 -> 84 | B84: 0.091135 | C84: 0.082589 | D84: 84 | E84: 0.091135 | F84: ='Mortality tables'!C82 -> 84 | G84: 0.068019 | H84: 0.060909 | I84: 84 | J84: 0.068019
A85: ='Mortality tables'!C83 -> 85 | B85: 0.10068 | C85: 0.091135 | D85: 85 | E85: 0.10068 | F85: ='Mortality tables'!C83 -> 85 | G85: 0.076054 | H85: 0.068019 | I85: 85 | J85: 0.076054
A86: ='Mortality tables'!C84 -> 86 | B86: 0.111444 | C86: 0.10068 | D86: 86 | E86: 0.111444 | F86: ='Mortality tables'!C84 -> 86 | G86: 0.085148 | H86: 0.076054 | I86: 86 | J86: 0.085148
A87: ='Mortality tables'!C85 -> 87 | B87: 0.123571 | C87: 0.111444 | D87: 87 | E87: 0.123571 | F87: ='Mortality tables'!C85 -> 87 | G87: 0.095395 | H87: 0.085148 | I87: 87 | J87: 0.095395
A88: ='Mortality tables'!C86 -> 88 | B88: 0.137126 | C88: 0.123571 | D88: 88 | E88: 0.137126 | F88: ='Mortality tables'!C86 -> 88 | G88: 0.106857 | H88: 0.095395 | I88: 88 | J88: 0.106857
A89: ='Mortality tables'!C87 -> 89 | B89: 0.152092 | C89: 0.137126 | D89: 89 | E89: 0.152092 | F89: ='Mortality tables'!C87 -> 89 | G89: 0.119557 | H89: 0.106857 | I89: 89 | J89: 0.119557
A90: ='Mortality tables'!C88 -> 90 | B90: 0.168426 | C90: 0.152092 | D90: 90 | E90: 0.168426 | F90: ='Mortality tables'!C88 -> 90 | G90: 0.133502 | H90: 0.119557 | I90: 90 | J90: 0.133502
A91: ='Mortality tables'!C89 -> 91 | B91: 0.186063 | C91: 0.168426 | D91: 91 | E91: 0.186063 | F91: ='Mortality tables'!C89 -> 91 | G91: 0.148685 | H91: 0.133502 | I91: 91 | J91: 0.148685
A92: ='Mortality tables'!C90 -> 92 | B92: 0.204925 | C92: 0.186063 | D92: 92 | E92: 0.204925 | F92: ='Mortality tables'!C90 -> 92 | G92: 0.165088 | H92: 0.148685 | I92: 92 | J92: 0.165088
A93: ='Mortality tables'!C91 -> 93 | B93: 0.224931 | C93: 0.204925 | D93: 93 | E93: 0.224931 | F93: ='Mortality tables'!C91 -> 93 | G93: 0.182685 | H93: 0.165088 | I93: 93 | J93: 0.182685
A94: ='Mortality tables'!C92 -> 94 | B94: 0.245995 | C94: 0.224931 | D94: 94 | E94: 0.245995 | F94: ='Mortality tables'!C92 -> 94 | G94: 0.201442 | H94: 0.182685 | I94: 94 | J94: 0.201442
A95: ='Mortality tables'!C93 -> 95 | B95: 0.266884 | C95: 0.245995 | D95: 95 | E95: 0.266884 | F95: ='Mortality tables'!C93 -> 95 | G95: 0.220406 | H95: 0.201442 | I95: 95 | J95: 0.220406
A96: ='Mortality tables'!C94 -> 96 | B96: 0.287218 | C96: 0.266884 | D96: 96 | E96: 0.287218 | F96: ='Mortality tables'!C94 -> 96 | G96: 0.239273 | H96: 0.220406 | I96: 96 | J96: 0.239273
A97: ='Mortality tables'!C95 -> 97 | B97: 0.306593 | C97: 0.287218 | D97: 97 | E97: 0.306593 | F97: ='Mortality tables'!C95 -> 97 | G97: 0.257714 | H97: 0.239273 | I97: 97 | J97: 0.257714
A98: ='Mortality tables'!C96 -> 98 | B98: 0.324599 | C98: 0.306593 | D98: 98 | E98: 0.324599 | F98: ='Mortality tables'!C96 -> 98 | G98: 0.275376 | H98: 0.257714 | I98: 98 | J98: 0.275376
A99: ='Mortality tables'!C97 -> 99 | B99: 0.340829 | C99: 0.324599 | D99: 99 | E99: 0.340829 | F99: ='Mortality tables'!C97 -> 99 | G99: 0.291899 | H99: 0.275376 | I99: 99 | J99: 0.291899
A100: ='Mortality tables'!C98 -> 100 | B100: 0.35787 | C100: 0.340829 | D100: 100 | E100: 0.35787 | F100: ='Mortality tables'!C98 -> 100 | G100: 0.309413 | H100: 0.291899 | I100: 100 | J100: 0.309413
A101: ='Mortality tables'!C99 -> 101 | B101: 0.375764 | C101: 0.35787 | D101: 101 | E101: 0.375764 | F101: ='Mortality tables'!C99 -> 101 | G101: =HLOOKUP(opt_table_F,MORT_TABLES,A101-2,FALSE) -> 0.327978 | H101: 0.309413 | I101: 101 | J101: 0.327978
A102: ='Mortality tables'!C100 -> 102 | B102: 0.394552 | C102: 0.375764 | D102: =A102+setback_yrs_M -> 102 | E102: 0.394552 | F102: ='Mortality tables'!C100 -> 102 | G102: 0.347656 | H102: 0.327978 | I102: =F102+setback_yrs_F -> 102 | J102: 0.347656
A103: ='Mortality tables'!C101 -> 103 | B103: 0.41428 | C103: 0.394552 | D103: 103 | E103: 0.41428 | F103: ='Mortality tables'!C101 -> 103 | G103: 0.368516 | H103: 0.347656 | I103: 103 | J103: 0.368516
A104: ='Mortality tables'!C102 -> 104 | B104: 0.434993 | C104: 0.41428 | D104: 104 | E104: 0.434993 | F104: ='Mortality tables'!C102 -> 104 | G104: 0.390627 | H104: 0.368516 | I104: 104 | J104: 0.390627
A105: ='Mortality tables'!C103 -> 105 | B105: 0.456743 | C105: 0.434993 | D105: 105 | E105: 0.456743 | F105: ='Mortality tables'!C103 -> 105 | G105: 0.414064 | H105: 0.390627 | I105: 105 | J105: 0.414064
A106: ='Mortality tables'!C104 -> 106 | B106: 0.47958 | C106: 0.456743 | D106: 106 | E106: 0.47958 | F106: ='Mortality tables'!C104 -> 106 | G106: 0.438908 | H106: 0.414064 | I106: 106 | J106: 0.438908
A107: ='Mortality tables'!C105 -> 107 | B107: 0.503559 | C107: 0.47958 | D107: 107 | E107: 0.503559 | F107: ='Mortality tables'!C105 -> 107 | G107: 0.465243 | H107: 0.438908 | I107: 107 | J107: 0.465243
A108: ='Mortality tables'!C106 -> 108 | B108: 0.528737 | C108: 0.503559 | D108: 108 | E108: 0.528737 | F108: ='Mortality tables'!C106 -> 108 | G108: 0.493157 | H108: 0.465243 | I108: 108 | J108: 0.493157
A109: ='Mortality tables'!C107 -> 109 | B109: 0.555174 | C109: 0.528737 | D109: 109 | E109: 0.555174 | F109: ='Mortality tables'!C107 -> 109 | G109: 0.522747 | H109: 0.493157 | I109: 109 | J109: 0.522747
A110: ='Mortality tables'!C108 -> 110 | B110: 0.582933 | C110: 0.555174 | D110: 110 | E110: 0.582933 | F110: ='Mortality tables'!C108 -> 110 | G110: 0.554111 | H110: 0.522747 | I110: 110 | J110: 0.554111
A111: ='Mortality tables'!C109 -> 111 | B111: 0.61208 | C111: 0.582933 | D111: 111 | E111: 0.61208 | F111: ='Mortality tables'!C109 -> 111 | G111: 0.587358 | H111: 0.554111 | I111: 111 | J111: 0.587358
A112: ='Mortality tables'!C110 -> 112 | B112: 0.642683 | C112: 0.61208 | D112: 112 | E112: 0.642683 | F112: ='Mortality tables'!C110 -> 112 | G112: 0.622599 | H112: 0.587358 | I112: 112 | J112: 0.622599
A113: ='Mortality tables'!C111 -> 113 | B113: 0.674818 | C113: 0.642683 | D113: 113 | E113: 0.674818 | F113: ='Mortality tables'!C111 -> 113 | G113: 0.659955 | H113: 0.622599 | I113: 113 | J113: 0.659955
A114: ='Mortality tables'!C112 -> 114 | B114: 0.708559 | C114: 0.674818 | D114: 114 | E114: 0.708559 | F114: ='Mortality tables'!C112 -> 114 | G114: 0.699553 | H114: 0.659955 | I114: 114 | J114: 0.699553
A115: ='Mortality tables'!C113 -> 115 | B115: 0.743986 | C115: 0.708559 | D115: 115 | E115: 0.743986 | F115: ='Mortality tables'!C113 -> 115 | G115: 0.741526 | H115: 0.699553 | I115: 115 | J115: 0.741526
A116: ='Mortality tables'!C114 -> 116 | B116: 0.781186 | C116: 0.743986 | D116: 116 | E116: 0.781186 | F116: ='Mortality tables'!C114 -> 116 | G116: 0.781186 | H116: 0.741526 | I116: 116 | J116: 0.781186
A117: ='Mortality tables'!C115 -> 117 | B117: 0.820245 | C117: 0.781186 | D117: 117 | E117: 0.820245 | F117: ='Mortality tables'!C115 -> 117 | G117: 0.820245 | H117: 0.781186 | I117: 117 | J117: 0.820245
A118: ='Mortality tables'!C116 -> 118 | B118: 0.861257 | C118: 0.820245 | D118: 118 | E118: 0.861257 | F118: ='Mortality tables'!C116 -> 118 | G118: 0.861257 | H118: 0.820245 | I118: 118 | J118: 0.861257
A119: ='Mortality tables'!C117 -> 119 | B119: 0.90432 | C119: 0.861257 | D119: 119 | E119: 0.90432 | F119: ='Mortality tables'!C117 -> 119 | G119: 0.90432 | H119: 0.861257 | I119: 119 | J119: 0.90432
A120: ='Mortality tables'!C118 -> 120 | B120: 1 | C120: 0.90432 | D120: 120 | E120: 1 | F120: ='Mortality tables'!C118 -> 120 | G120: 1 | H120: 0.90432 | I120: 120 | J120: 1
A121: ='Mortality tables'!C119 -> 121 | B121: 1 | C121: 1 | D121: 121 | E121: 1 | F121: ='Mortality tables'!C119 -> 121 | G121: 1 | H121: 1 | I121: 121 | J121: 1
A122: ='Mortality tables'!C120 -> 122 | B122: 1 | C122: 1 | D122: 122 | E122: 1 | F122: ='Mortality tables'!C120 -> 122 | G122: 1 | H122: 1 | I122: 122 | J122: 1
A123: ='Mortality tables'!C121 -> 123 | B123: 1 | C123: 1 | D123: 123 | E123: 1 | F123: ='Mortality tables'!C121 -> 123 | G123: 1 | H123: 1 | I123: 123 | J123: 1
A124: ='Mortality tables'!C122 -> 124 | B124: 1 | C124: 1 | D124: 124 | E124: 1 | F124: ='Mortality tables'!C122 -> 124 | G124: 1 | H124: 1 | I124: 124 | J124: 1
A125: ='Mortality tables'!C123 -> 125 | B125: 1 | C125: 1 | D125: 125 | E125: 1 | F125: ='Mortality tables'!C123 -> 125 | G125: 1 | H125: 1 | I125: 125 | J125: 1
A126: ='Mortality tables'!C124 -> 126 | B126: 1 | C126: 1 | D126: 126 | E126: 1 | F126: ='Mortality tables'!C124 -> 126 | G126: 1 | H126: 1 | I126: 126 | J126: 1
A127: ='Mortality tables'!C125 -> 127 | B127: 1 | C127: 1 | D127: 127 | E127: 1 | F127: ='Mortality tables'!C125 -> 127 | G127: 1 | H127: 1 | I127: 127 | J127: 1
A128: ='Mortality tables'!C126 -> 128 | B128: 1 | C128: 1 | D128: 128 | E128: 1 | F128: ='Mortality tables'!C126 -> 128 | G128: 1 | H128: 1 | I128: 128 | J128: 1
A129: ='Mortality tables'!C127 -> 129 | B129: 1 | C129: 1 | D129: 129 | E129: 1 | F129: ='Mortality tables'!C127 -> 129 | G129: 1 | H129: 1 | I129: 129 | J129: 1
A130: ='Mortality tables'!C128 -> 130 | B130: 1 | C130: 1 | D130: 130 | E130: 1 | F130: ='Mortality tables'!C128 -> 130 | G130: 1 | H130: 1 | I130: 130 | J130: 1
A131: ='Mortality tables'!C129 -> 131 | B131: 1 | C131: 1 | D131: 131 | E131: 1 | F131: ='Mortality tables'!C129 -> 131 | G131: 1 | H131: 1 | I131: 131 | J131: 1
A132: ='Mortality tables'!C130 -> 132 | B132: 1 | C132: 1 | D132: 132 | E132: 1 | F132: ='Mortality tables'!C130 -> 132 | G132: 1 | H132: 1 | I132: 132 | J132: 1
A133: ='Mortality tables'!C131 -> 133 | B133: 1 | C133: 1 | D133: 133 | E133: 1 | F133: ='Mortality tables'!C131 -> 133 | G133: =HLOOKUP(opt_table_F,MORT_TABLES,A133-2,FALSE) -> 1 | H133: 1 | I133: 133 | J133: 1
A134: ='Mortality tables'!C132 -> 134 | B134: =HLOOKUP(opt_table_M,MORT_TABLES,A134-2,FALSE) -> 1 | C134: 1 | D134: =A134+setback_yrs_M -> 134 | E134: =B134 -> 1 | F134: ='Mortality tables'!C132 -> 134 | G134: 1 | H134: 1 | I134: =F134+setback_yrs_F -> 134 | J134: =G134 -> 1
A135: ='Mortality tables'!C133 -> 135 | B135: 1 | C135: =B134 -> 1 | D135: 135 | E135: 1 | F135: ='Mortality tables'!C133 -> 135 | G135: 1 | H135: =G134 -> 1 | I135: 135 | J135: 1
A136: ='Mortality tables'!C134 -> 136 | B136: 1 | C136: 1 | D136: 136 | E136: 1 | F136: ='Mortality tables'!C134 -> 136 | G136: 1 | H136: 1 | I136: 136 | J136: 1
A137: ='Mortality tables'!C135 -> 137 | B137: 1 | C137: 1 | D137: 137 | E137: 1 | F137: ='Mortality tables'!C135 -> 137 | G137: 1 | H137: 1 | I137: 137 | J137: 1
A138: ='Mortality tables'!C136 -> 138 | B138: 1 | C138: 1 | D138: 138 | E138: 1 | F138: ='Mortality tables'!C136 -> 138 | G138: 1 | H138: 1 | I138: 138 | J138: 1
A139: ='Mortality tables'!C137 -> 139 | B139: 1 | C139: 1 | D139: 139 | E139: 1 | F139: ='Mortality tables'!C137 -> 139 | G139: 1 | H139: 1 | I139: 139 | J139: 1
A140: ='Mortality tables'!C138 -> 140 | B140: 1 | C140: 1 | D140: 140 | E140: 1 | F140: ='Mortality tables'!C138 -> 140 | G140: 1 | H140: 1 | I140: 140 | J140: 1

Sheet Mortality tables
B1: Min age: | D1: 2582 | E1: 2581 | F1: SSM | G1: SSF
B2: 5 | D2: 2012 IAM Basic Table – Female, ANB | E2: 2012 IAM Basic Table – Male, ANB | F2: Soc. Sec. 2011-Male | G2: Soc. Sec. 2011-Female
B3: Max age: | C3: 5 | D3: 0.000139 | E3: 0.000186 | F3: 0.000158 | G3: 0.000127
B4: 95 | C4: 6 | D4: 0.00013 | E4: 0.000184 | F4: 0.000147 | G4: 0.000116
C5: 7 | D5: 0.000122 | E5: 0.000177 | F5: 0.000136 | G5: 0.000106
A6: Number | B6: Table name | C6: 8 | D6: 0.000105 | E6: 0.000159 | F6: 0.000121 | G6: 9.8e-05
A7: =TRANSPOSE(D1:G2) -> 2582 | B7: 2012 IAM Basic Table – Female, ANB | C7: 9 | D7: 9.8E-05 | E7: 0.000143 | F7: 0.000104 | G7: 9.1e-05
A8: 2581 | B8: 2012 IAM Basic Table – Male, ANB | C8: 10 | D8: 9.4E-05 | E8: 0.000126 | F8: 9.2e-05 | G8: 8.6e-05
A9: SSM | B9: Soc. Sec. 2011-Male | C9: 11 | D9: 9.6E-05 | E9: 0.000123 | F9: 9.7e-05 | G9: 8.9e-05
A10: SSF | B10: Soc. Sec. 2011-Female | C10: 12 | D10: 0.000105 | E10: 0.000147 | F10: 0.000134 | G10: 0.000102
C11: 13 | D11: 0.00012 | E11: 0.000188 | F11: 0.00021 | G11: 0.000128
C12: 14 | D12: 0.000146 | E12: 0.000236 | F12: 0.000317 | G12: 0.000164
C13: 15 | D13: 0.000174 | E13: 0.000282 | F13: 0.000433 | G13: 0.000205
C14: 16 | D14: 0.000199 | E14: 0.000325 | F14: 0.000547 | G14: 0.000246
C15: 17 | D15: 0.00022 | E15: 0.000364 | F15: 0.000672 | G15: 0.000285
C16: 18 | D16: 0.000234 | E16: 0.000399 | F16: 0.000805 | G16: 0.000319
C17: 19 | D17: 0.000245 | E17: 0.00043 | F17: 0.000941 | G17: 0.00035
C18: 20 | D18: 0.000253 | E18: 0.000459 | F18: 0.001084 | G18: 0.000383
C19: 21 | D19: 0.00026 | E19: 0.000492 | F19: 0.001219 | G19: 0.000417
C20: 22 | D20: 0.000266 | E20: 0.000526 | F20: 0.001314 | G20: 0.000446
C21: 23 | D21: 0.000272 | E21: 0.000569 | F21: 0.001357 | G21: 0.000469
C22: 24 | D22: 0.000275 | E22: 0.000616 | F22: 0.001362 | G22: 0.000487
C23: 25 | D23: 0.000277 | E23: 0.000669 | F23: 0.001353 | G23: 0.000505
C24: 26 | D24: 0.000284 | E24: 0.000728 | F24: 0.00135 | G24: 0.000525
C25: 27 | D25: 0.00029 | E25: 0.000764 | F25: 0.001353 | G25: 0.000551
C26: 28 | D26: 0.0003 | E26: 0.000789 | F26: 0.001371 | G26: 0.000585
C27: 29 | D27: 0.000313 | E27: 0.000808 | F27: 0.001399 | G27: 0.000626
C28: 30 | D28: 0.000333 | E28: 0.000824 | F28: 0.001432 | G28: 0.000672
C29: 31 | D29: 0.000357 | E29: 0.000834 | F29: 0.001464 | G29: 0.00072
C30: 32 | D30: 0.000375 | E30: 0.000838 | F30: 0.001497 | G30: 0.000766
C31: 33 | D31: 0.00039 | E31: 0.000828 | F31: 0.00153 | G31: 0.000806
C32: 34 | D32: 0.000405 | E32: 0.000808 | F32: 0.001568 | G32: 0.000846
C33: 35 | D33: 0.000424 | E33: 0.000789 | F33: 0.001617 | G33: 0.000891
C34: 36 | D34: 0.000447 | E34: 0.000783 | F34: 0.001682 | G34: 0.000946
C35: 37 | D35: 0.000476 | E35: 0.0008 | F35: 0.001759 | G35: 0.001013
C36: 38 | D36: 0.000514 | E36: 0.000837 | F36: 0.001852 | G36: 0.001094
C37: 39 | D37: 0.00056 | E37: 0.000889 | F37: 0.001963 | G37: 0.00119
C38: 40 | D38: 0.000613 | E38: 0.000955 | F38: 0.002092 | G38: 0.001296
C39: 41 | D39: 0.000667 | E39: 0.001029 | F39: 0.002246 | G39: 0.001413
C40: 42 | D40: 0.000723 | E40: 0.00111 | F40: 0.002436 | G40: 0.001549
C41: 43 | D41: 0.000774 | E41: 0.001188 | F41: 0.002669 | G41: 0.001706
C42: 44 | D42: 0.000823 | E42: 0.001268 | F42: 0.002942 | G42: 0.001881
C43: 45 | D43: 0.000866 | E43: 0.001355 | F43: 0.003244 | G43: 0.002069
C44: 46 | D44: 0.000917 | E44: 0.001464 | F44: 0.003571 | G44: 0.00227
C45: 47 | D45: 0.000983 | E45: 0.001615 | F45: 0.003926 | G45: 0.002486
C46: 48 | D46: 0.001072 | E46: 0.001808 | F46: 0.004309 | G46: 0.002716
C47: 49 | D47: 0.001168 | E47: 0.002032 | F47: 0.004719 | G47: 0.00296
C48: 50 | D48: 0.00129 | E48: 0.002285 | F48: 0.005156 | G48: 0.003226
C49: 51 | D49: 0.001453 | E49: 0.002557 | F49: 0.005622 | G49: 0.003505
C50: 52 | D50: 0.001622 | E50: 0.002828 | F50: 0.006121 | G50: 0.003779
C51: 53 | D51: 0.001792 | E51: 0.003088 | F51: 0.006656 | G51: 0.00404
C52: 54 | D52: 0.001972 | E52: 0.003345 | F52: 0.007222 | G52: 0.004301
C53: 55 | D53: 0.002166 | E53: 0.003616 | F53: 0.007844 | G53: 0.004592
C54: 56 | D54: 0.002393 | E54: 0.003922 | F54: 0.008493 | G54: 0.00492
C55: 57 | D55: 0.002666 | E55: 0.004272 | F55: 0.009116 | G55: 0.005266
C56: 58 | D56: 0.003 | E56: 0.004681 | F56: 0.00969 | G56: 0.00563
C57: 59 | D57: 0.003393 | E57: 0.005146 | F57: 0.010253 | G57: 0.006028
C58: 60 | D58: 0.003844 | E58: 0.005662 | F58: 0.010872 | G58: 0.006479
C59: 61 | D59: 0.004352 | E59: 0.006237 | F59: 0.011591 | G59: 0.007001
C60: 62 | D60: 0.004899 | E60: 0.006854 | F60: 0.012403 | G60: 0.007602
C61: 63 | D61: 0.005482 | E61: 0.00751 | F61: 0.013325 | G61: 0.008294
C62: 64 | D62: 0.006118 | E62: 0.00822 | F62: 0.01437 | G62: 0.009082
C63: 65 | D63: 0.006829 | E63: 0.009007 | F63: 0.015553 | G63: 0.00999
C64: 66 | D64: 0.007279 | E64: 0.009497 | F64: 0.016878 | G64: 0.011005
C65: 67 | D65: 0.007821 | E65: 0.010085 | F65: 0.018348 | G65: 0.012097
C66: 68 | D66: 0.008475 | E66: 0.010787 | F66: 0.019969 | G66: 0.013261
C67: 69 | D67: 0.009234 | E67: 0.011625 | F67: 0.021766 | G67: 0.014529
C68: 70 | D68: 0.010083 | E68: 0.012619 | F68: 0.02384 | G68: 0.015991
C69: 71 | D69: 0.011011 | E69: 0.013798 | F69: 0.026162 | G69: 0.017662
C70: 72 | D70: 0.01203 | E70: 0.015195 | F70: 0.028625 | G70: 0.019486
C71: 73 | D71: 0.013154 | E71: 0.016834 | F71: 0.031204 | G71: 0.021467
C72: 74 | D72: 0.014415 | E72: 0.018733 | F72: 0.033997 | G72: 0.023658
C73: 75 | D73: 0.015869 | E73: 0.020905 | F73: 0.0372 | G73: 0.026223
C74: 76 | D74: 0.017555 | E74: 0.023367 | F74: 0.040898 | G74: 0.029159
C75: 77 | D75: 0.0195 | E75: 0.026155 | F75: 0.04504 | G75: 0.032331
C76: 78 | D76: 0.021758 | E76: 0.029306 | F76: 0.049664 | G76: 0.035725
C77: 79 | D77: 0.024412 | E77: 0.032858 | F77: 0.054844 | G77: 0.039469
C78: 80 | D78: 0.027579 | E78: 0.036927 | F78: 0.060801 | G78: 0.043828
C79: 81 | D79: 0.031501 | E79: 0.041703 | F79: 0.067509 | G79: 0.048896
C80: 82 | D80: 0.036122 | E80: 0.046957 | F80: 0.074779 | G80: 0.054577
C81: 83 | D81: 0.041477 | E81: 0.052713 | F81: 0.082589 | G81: 0.060909
C82: 84 | D82: 0.047589 | E82: 0.059148 | F82: 0.091135 | G82: 0.068019
C83: 85 | D83: 0.054441 | E83: 0.066505 | F83: 0.10068 | G83: 0.076054
C84: 86 | D84: 0.061972 | E84: 0.075015 | F84: 0.111444 | G84: 0.085148
C85: 87 | D85: 0.070155 | E85: 0.084823 | F85: 0.123571 | G85: 0.095395
C86: 88 | D86: 0.078963 | E86: 0.095987 | F86: 0.137126 | G86: 0.106857
C87: 89 | D87: 0.088336 | E87: 0.108482 | F87: 0.152092 | G87: 0.119557
C88: 90 | D88: 0.098197 | E88: 0.122214 | F88: 0.168426 | G88: 0.133502
C89: 91 | D89: 0.108323 | E89: 0.136799 | F89: 0.186063 | G89: 0.148685
C90: 92 | D90: 0.119188 | E90: 0.152409 | F90: 0.204925 | G90: 0.165088
C91: 93 | D91: 0.131334 | E91: 0.169078 | F91: 0.224931 | G91: 0.182685
C92: 94 | D92: 0.145521 | E92: 0.186882 | F92: 0.245995 | G92: 0.201442
C93: 95 | D93: 0.162722 | E93: 0.205844 | F93: 0.266884 | G93: 0.220406
C94: 96 | D94: 0.18212 | E94: 0.219247 | F94: 0.287218 | G94: 0.239273
C95: 97 | D95: 0.199661 | E95: 0.238612 | F95: 0.306593 | G95: 0.257714
C96: 98 | D96: 0.217946 | E96: 0.258341 | F96: 0.324599 | G96: 0.275376
C97: 99 | D97: 0.236834 | E97: 0.278219 | F97: 0.340829 | G97: 0.291899
C98: 100 | D98: 0.256357 | E98: 0.298452 | F98: 0.35787 | G98: 0.309413
C99: 101 | D99: 0.283802 | E99: 0.32361 | F99: 0.375764 | G99: 0.327978
C100: 102 | D100: 0.304716 | E100: 0.344191 | F100: 0.394552 | G100: 0.347656
C101: 103 | D101: 0.325819 | E101: 0.364633 | F101: 0.41428 | G101: 0.368516
C102: 104 | D102: 0.346936 | E102: 0.384783 | F102: 0.434993 | G102: 0.390627
C103: 105 | D103: 0.367898 | E103: 0.4 | F103: 0.456743 | G103: 0.414064
C104: 106 | D104: 0.387607 | E104: 0.4 | F104: 0.47958 | G104: 0.438908
C105: 107 | D105: 0.4 | E105: 0.4 | F105: 0.503559 | G105: 0.465243
C106: 108 | D106: 0.4 | E106: 0.4 | F106: 0.528737 | G106: 0.493157
C107: 109 | D107: 0.4 | E107: 0.4 | F107: 0.555174 | G107: 0.522747
C108: 110 | D108: 0.4 | E108: 0.4 | F108: 0.582933 | G108: 0.554111
C109: 111 | D109: 0.4 | E109: 0.4 | F109: 0.61208 | G109: 0.587358
C110: 112 | D110: 0.4 | E110: 0.4 | F110: 0.642683 | G110: 0.622599
C111: 113 | D111: 0.4 | E111: 0.4 | F111: 0.674818 | G111: 0.659955
C112: 114 | D112: 0.4 | E112: 0.4 | F112: 0.708559 | G112: 0.699553
C113: 115 | D113: 0.4 | E113: 0.4 | F113: 0.743986 | G113: 0.741526
C114: 116 | D114: 0.4 | E114: 0.4 | F114: 0.781186 | G114: 0.781186
C115: 117 | D115: 0.4 | E115: 0.4 | F115: 0.820245 | G115: 0.820245
C116: 118 | D116: 0.4 | E116: 0.4 | F116: 0.861257 | G116: 0.861257
C117: 119 | D117: 0.4 | E117: 0.4 | F117: 0.90432 | G117: 0.90432
C118: 120 | D118: 0.4 | E118: 0.4 | F118: 1 | G118: 1
C119: 121 | D119: 1.000000 | E119: 1.000000 | F119: 1 | G119: 1
C120: 122 | D120: 1.000000 | E120: 1.000000 | F120: 1.000000 | G120: 1.000000
C121: 123 | D121: 1.000000 | E121: 1.000000 | F121: 1.000000 | G121: 1.000000
C122: 124 | D122: 1.000000 | E122: 1.000000 | F122: 1.000000 | G122: 1.000000
C123: 125 | D123: 1.000000 | E123: 1.000000 | F123: 1.000000 | G123: 1.000000
C124: 126 | D124: 1.000000 | E124: 1.000000 | F124: 1.000000 | G124: 1.000000
C125: 127 | D125: 1.000000 | E125: 1.000000 | F125: 1.000000 | G125: 1.000000
C126: 128 | D126: 1.000000 | E126: 1.000000 | F126: 1.000000 | G126: 1.000000
C127: 129 | D127: 1.000000 | E127: 1.000000 | F127: 1.000000 | G127: 1.000000
C128: 130 | D128: 1.000000 | E128: 1.000000 | F128: 1.000000 | G128: 1.000000
C129: 131 | D129: 1.000000 | E129: 1.000000 | F129: 1.000000 | G129: 1.000000
C130: 132 | D130: 1.000000 | E130: 1.000000 | F130: 1.000000 | G130: 1.000000
C131: 133 | D131: 1.000000 | E131: 1.000000 | F131: 1.000000 | G131: 1.000000
C132: 134 | D132: 1.000000 | E132: 1.000000 | F132: 1.000000 | G132: 1.000000
C133: 135 | D133: 1.000000 | E133: 1.000000 | F133: 1.000000 | G133: 1.000000
C134: 136 | D134: 1.000000 | E134: 1.000000 | F134: 1.000000 | G134: 1.000000
C135: 137 | D135: 1.000000 | E135: 1.000000 | F135: 1.000000 | G135: 1.000000
C136: 138 | D136: 1.000000 | E136: 1.000000 | F136: 1.000000 | G136: 1.000000
C137: 139 | D137: 1.000000 | E137: 1.000000 | F137: 1.000000 | G137: 1.000000
C138: 140 | D138: 1.000000 | E138: 1.000000 | F138: 1.000000 | G138: 1.000000

Sheet Notes
A1: date | B1: 2014-05-23
A2: by | B2: Mary Pat Campbell
B3: marypat.campbell@gmail.com
A6: Table Source, Social Security
A7: Actuarial Study No. 120, published August 2005
A8: Life Tables for the
A9: United States Social Security
A10: Area 1900-2100
A12: ACTUARIAL STUDY NO. 120
A13: by Felicitie C. Bell
A14: and Michael L. Miller
A16: Table 6 -- Calendar Year 2010
A17: http://www.ssa.gov/oact/NOTES/as120/LifeTables_Tbl_6_2010.html
A21: Table Source, Annuitant mortality
A22: NEW annuitant mortality study
A23: Details here:
A24: http://www.actuary.org/files/publications/Payout_Annuity_Report_09-28-11.pdf
A25: http://mort.soa.org/ViewTable.aspx?&TableIdentity=2582
A26: Using BASIC table -- doesn't have the margin in it

Sheet Version control
A1: Version | B1: Notes
A2: 1.0 | B2: Original
A3: 1.01 | B3: Fixed VBA code for explanations of results form
A4: 1.5 | B4: Added: mortality improvement, explanations of methods, new Social Security table (not that different from before), printable explanations sheet
A5: 1.6 | B5: Looking at projection scale G
A6: 1.7 | B6: Implemented projection scale G, looking at calculation comparisons
A7: 1.8 | B7: Removed projection scale G stuff, explanation sheet wording edited, cleaning up VBA
A8: 1.8.1 | B8: Fixed text areas on "Printable Explanations" sheet and ExplanationForm user form
A9: 2.0 | B9: Switched out 2000 Soc. Sec. Table, replaced with 2010 table; explanations updated; input changed
A10: 2.1 | B10: Updated links, fixed code for recalculation
A11: 2.1.0 | B11: Added a file name in display page, content management policy for SOA, converted to .xlsm, removed setback stuff as it wasn't being used
A12: 3.0 | B12: New mortality table for annuitants, added notes page to document data sources, remove unused names, unhid sheet tabs, removed all sheet protection
A13: 3.1 | B13: Updated Soc. Sec. Table with 2011 data
